{"text_format":"1","workbook":"xlsx","n_sheets":8,"sheets":["Calculo","Cartaz","Subst_Tribut","Tabelas","Tabelas_Simples","Tabelas_Serviços","Lucro Presumido","Critérios"],"not_rendered":{"charts":0,"images":1,"macros":1,"external_links":0,"defined_names":30,"comments":0,"pivot_tables":0},"unopened":[],"bounds":{"document_bytes":16777216,"sheet_cells":100000,"rows_first":2000,"rows_last":500,"rows_between":2000,"halvings":0,"cell_chars":16384,"cell_head_chars":4096},"cells_cut":0,"cells_raw":0,"read":"whole","date_system":"1900"}

{"sheet":"Calculo","index":0,"n_rows":19,"n_cols":38,"rows_kept":19,"cut":false,"hidden":false,"merged":[[2,4,2,5],[0,1,0,2],[2,1,2,2],[2,15,2,26]]}
[null,"Cálculo do Imposto a ser incluído na Nota Fiscal",null,null,null,null,null,null,null,null,null,null,null,null,null,null,null,null,null,null,null,null,null,null,null,null,null,null,null,null,null,null,null,null,null,null,null,"Simples Nacional"]
[]
[null,"Dados sobre a Empresa",null,null,"Cálculo Imposto",null,null,null,null,null,null,null,null,null,null,null,null,null,null,null,null,null,null,null,null,null,null,null,null,null,null,null,null,null,null,null,null,"Lucro Presumido"]
[null,"UF:"]
[null,"Segmento de Atividade:"]
[null,"Setor:"]
[null,"Regime Tributação:"]
[null,"Faixa de Receita Bruta Anual:"]
[]
[]
[null,null,null,null,"Passos:"]
[null,null,null,null,"1 - Habilitar macros"]
[null,null,null,null,"2 - Clicar no botão \"Limpa cálculo anterior\""]
[null,null,null,null,"3 - Preencher os dados sobre a Empresa. O campo \"Setor\" não precisa ser preenchido."]
[null,null,null,null,"4 - Clicar no botão \"Calcula Tributos\""]
[null,null,null,null,"5 - Clicar no botão \"Gera Cartaz\""]
[]
[null,null,null,null,"Clique aqui para saber critérios de cálculo utilizados."]
[null,null,null,null,"Clique aqui para saber o enquadramento dos Serviços nas Tabelas III a VI do Simples Nacional."]

{"sheet":"Cartaz","index":1,"n_rows":13,"n_cols":3,"rows_kept":13,"cut":false,"hidden":false,"merged":[[0,0,0,9],[3,0,3,9],[4,0,4,9],[10,0,10,9],[12,0,12,9],[5,0,5,8],[7,2,7,3],[6,2,6,3],[8,2,8,3],[6,4,6,5],[7,4,7,5],[8,4,8,5]]}
["ATENÇÃO"]
[]
[]
["Em atendimento a Lei 12.741/2012 (Lei do Imposto na Nota Fiscal) informamos que o valor aproximado dos tributos incidentes sobre as operações deste estabelecimento é de:  "]
[]
["assim distribuídos:"]
[null,null,"União:"]
[null,null,"Estado:"]
[null,null,"Município:"]
[]
["* informamos que os valores percentuais relativos à carga tributária são aproximados,  nos termos do art. 1º da Lei 12.741/2012 e art. 2º do Decreto 8.264/2014. "]
[]
["**Os valores relativos à substituição tributária foram calculados com base em estudos elaborados pelo SEBRAE."]

{"sheet":"Subst_Tribut","index":2,"n_rows":487,"n_cols":6,"rows_kept":487,"cut":false,"hidden":true,"merged":[]}
[null,"UF","Segmento","Setor","% Substituição Tributária"]
["ACComércio de Artigos do Vestuário","AC","Comércio de Artigos do Vestuário","Comércio",0]
["ACComércio de Autopeças","AC","Comércio de Autopeças","Comércio",3.7365179999999998E-2]
["ACComércio de Materiais de Construção","AC","Comércio de Materiais de Construção","Comércio",0]
["ACFarmácias","AC","Farmácias","Comércio",6.1562034386696933E-2]
["ACMercearias","AC","Mercearias","Comércio",0]
["ACRestaurantes","AC","Restaurantes","Comércio",3.7943133333333337E-3,1.7120254620005045E-2]
["ACConfecção de Peças de Vestuário","AC","Confecção de Peças de Vestuário","Indústria",0]
["ACFabricação de Calçados de Couro","AC","Fabricação de Calçados de Couro","Indústria",0]
["ACFabricação de Laticínios","AC","Fabricação de Laticínios","Indústria",7.0000000000000001E-3]
["ACFabricação de Móveis","AC","Fabricação de Móveis","Indústria",0]
["ACFabricação de Produtos Cerâmicos","AC","Fabricação de Produtos Cerâmicos","Indústria",0]
["ACFabricação de Produtos de Panificação","AC","Fabricação de Produtos de Panificação","Indústria",7.0000000000000001E-3,2.3333333333333335E-3]
["ALComércio de Artigos do Vestuário","AL","Comércio de Artigos do Vestuário","Comércio",0]
["ALComércio de Autopeças","AL","Comércio de Autopeças","Comércio",3.7365180796661408E-2]
["ALComércio de Materiais de Construção","AL","Comércio de Materiais de Construção","Comércio",3.3485844521042404E-2]
["ALFarmácias","AL","Farmácias","Comércio",5.0322700000000005E-2]
["ALMercearias","AL","Mercearias","Comércio",1.4721906035759551E-2]
["ALRestaurantes","AL","Restaurantes","Comércio",1.1066746154915975E-2,2.4493729584729892E-2]
["ALConfecção de Peças de Vestuário","AL","Confecção de Peças de Vestuário","Indústria",0]
["ALFabricação de Calçados de Couro","AL","Fabricação de Calçados de Couro","Indústria",0]
["ALFabricação de Laticínios","AL","Fabricação de Laticínios","Indústria",0]
["ALFabricação de Móveis","AL","Fabricação de Móveis","Indústria",0]
["ALFabricação de Produtos Cerâmicos","AL","Fabricação de Produtos Cerâmicos","Indústria",5.3904500000000001E-2]
["ALFabricação de Produtos de Panificação","AL","Fabricação de Produtos de Panificação","Indústria",2.935171119795563E-2,1.3876035199659272E-2]
["AMComércio de Artigos do Vestuário","AM","Comércio de Artigos do Vestuário","Comércio",0]
["AMComércio de Autopeças","AM","Comércio de Autopeças","Comércio",3.7365180796661401E-2]
["AMComércio de Materiais de Construção","AM","Comércio de Materiais de Construção","Comércio",3.0085477835142732E-2]
["AMFarmácias","AM","Farmácias","Comércio",6.7148355707036228E-2]
["AMMercearias","AM","Mercearias","Comércio",2.3975675543951264E-2]
["AMRestaurantes","AM","Restaurantes","Comércio",6.7981433333333336E-3,2.7562138869354161E-2]
["AMConfecção de Peças de Vestuário","AM","Confecção de Peças de Vestuário","Indústria",0]
["AMFabricação de Calçados de Couro","AM","Fabricação de Calçados de Couro","Indústria",0]
["AMFabricação de Laticínios","AM","Fabricação de Laticínios","Indústria",2.6349999999999998E-2]
["AMFabricação de Móveis","AM","Fabricação de Móveis","Indústria",4.2500000000000003E-2]
["AMFabricação de Produtos Cerâmicos","AM","Fabricação de Produtos Cerâmicos","Indústria",5.9499999999999997E-2]
["AMFabricação de Produtos de Panificação","AM","Fabricação de Produtos de Panificação","Indústria",2.3800000000000002E-2,2.5358333333333333E-2]
["APComércio de Artigos do Vestuário","AP","Comércio de Artigos do Vestuário","Comércio",0]
["APComércio de Autopeças","AP","Comércio de Autopeças","Comércio",3.7365180796661401E-2]
["APComércio de Materiais de Construção","AP","Comércio de Materiais de Construção","Comércio",3.3485844521042397E-2]
["APFarmácias","AP","Farmácias","Comércio",4.4384175039848379E-2]
["APMercearias","AP","Mercearias","Comércio",2.0041586368008801E-2]
["APRestaurantes","AP","Restaurantes","Comércio",1.1066746154915975E-2,2.4390588813412824E-2]
["APConfecção de Peças de Vestuário","AP","Confecção de Peças de Vestuário","Indústria",0]
["APFabricação de Calçados de Couro","AP","Fabricação de Calçados de Couro","Indústria",0]
["APFabricação de Laticínios","AP","Fabricação de Laticínios","Indústria",1.8700000000000001E-2]
["APFabricação de Móveis","AP","Fabricação de Móveis","Indústria",0]
["APFabricação de Produtos Cerâmicos","AP","Fabricação de Produtos Cerâmicos","Indústria",5.8000000000000003E-2]
["APFabricação de Produtos de Panificação","AP","Fabricação de Produtos de Panificação","Indústria",1.639147185812832E-2,1.5515245309688055E-2]
["BAComércio de Artigos do Vestuário","BA","Comércio de Artigos do Vestuário","Comércio",0]
["BAComércio de Autopeças","BA","Comércio de Autopeças","Comércio",3.7365180796661401E-2]
["BAComércio de Materiais de Construção","BA","Comércio de Materiais de Construção","Comércio",0.13905052275310043]
["BAFarmácias","BA","Farmácias","Comércio",4.6711586549723474E-2]
["BAMercearias","BA","Mercearias","Comércio",2.7300000000000001E-2]
["BARestaurantes","BA","Restaurantes","Comércio",3.6952646369254713E-3,4.2353759122735125E-2]
["BAConfecção de Peças de Vestuário","BA","Confecção de Peças de Vestuário","Indústria",0]
["BAFabricação de Calçados de Couro","BA","Fabricação de Calçados de Couro","Indústria",3.4000000000000002E-2]
["BAFabricação de Laticínios","BA","Fabricação de Laticínios","Indústria",0]
["BAFabricação de Móveis","BA","Fabricação de Móveis","Indústria",0]
["BAFabricação de Produtos Cerâmicos","BA","Fabricação de Produtos Cerâmicos","Indústria",0]
["BAFabricação de Produtos de Panificação","BA ","Fabricação de Produtos de Panificação","Indústria",2.8101271829467374E-2,1.0350211971577896E-2]
["CEComércio de Artigos do Vestuário","CE","Comércio de Artigos do Vestuário","Comércio",0]
["CEComércio de Autopeças","CE","Comércio de Autopeças","Comércio",3.7365180796661408E-2]
["CEComércio de Materiais de Construção","CE","Comércio de Materiais de Construção","Comércio",0]
["CEFarmácias","CE","Farmácias","Comércio",9.1442156537713759E-2]
["CEMercearias","CE","Mercearias","Comércio",1.472190603575955E-2]
["CERestaurantes","CE","Restaurantes","Comércio",1.1066746154915975E-2,2.5765998254175113E-2]
["CEConfecção de Peças de Vestuário","CE","Confecção de Peças de Vestuário","Indústria",1.7555799305733543E-2]
["CEFabricação de Calçados de Couro","CE","Fabricação de Calçados de Couro","Indústria",4.675E-2]
["CEFabricação de Laticínios","CE","Fabricação de Laticínios","Indústria",0]
["CEFabricação de Móveis","CE","Fabricação de Móveis","Indústria",0]
["CEFabricação de Produtos Cerâmicos","CE","Fabricação de Produtos Cerâmicos","Indústria",0]
["CEFabricação de Produtos de Panificação","CE","Fabricação de Produtos de Panificação","Indústria",2.9351711197955637E-2,1.5609585083948198E-2]
["DFComércio de Artigos do Vestuário","DF","Comércio de Artigos do Vestuário","Comércio",0]
["DFComércio de Autopeças","DF","Comércio de Autopeças","Comércio",3.7362600073764754E-2]
["DFComércio de Materiais de Construção","DF","Comércio de Materiais de Construção","Comércio",2.7990690662947924E-2]
["DFFarmácias","DF","Farmácias","Comércio",5.7523992430408892E-2]
["DFMercearias","DF","Mercearias","Comércio",3.7114048829645918E-2]
["DFRestaurantes","DF","Restaurantes","Comércio",1.1066746154915975E-2,2.8509679691947246E-2]
["DFConfecção de Peças de Vestuário","DF","Confecção de Peças de Vestuário","Indústria",0]
["DFFabricação de Calçados de Couro","DF","Fabricação de Calçados de Couro","Indústria",0]
["DFFabricação de Laticínios","DF","Fabricação de Laticínios","Indústria",4.4534500000000005E-2]
["DFFabricação de Móveis","DF","Fabricação de Móveis","Indústria",0]
["DFFabricação de Produtos Cerâmicos","DF","Fabricação de Produtos Cerâmicos","Indústria",0]
["DFFabricação de Produtos de Panificação","DF","Fabricação de Produtos de Panificação","Indústria",0.09,2.2422416666666667E-2]
["ESComércio de Artigos do Vestuário","ES","Comércio de Artigos do Vestuário","Comércio",0]
["ESComércio de Autopeças","ES","Comércio de Autopeças","Comércio",3.7365200000000001E-2]
["ESComércio de Materiais de Construção","ES","Comércio de Materiais de Construção","Comércio",0]
["ESFarmácias","ES","Farmácias","Comércio",4.16201E-2]
["ESMercearias","ES","Mercearias","Comércio",0]
["ESRestaurantes","ES","Restaurantes","Comércio",8.0312999999999999E-3,1.4502766666666668E-2]
["ESConfecção de Peças de Vestuário","ES","Confecção de Peças de Vestuário","Indústria",0]
["ESFabricação de Calçados de Couro","ES","Fabricação de Calçados de Couro","Indústria",0]
["ESFabricação de Laticínios","ES","Fabricação de Laticínios","Indústria",0]
["ESFabricação de Móveis","ES","Fabricação de Móveis","Indústria",0]
["ESFabricação de Produtos Cerâmicos","ES","Fabricação de Produtos Cerâmicos","Indústria",0]
["ESFabricação de Produtos de Panificação","ES","Fabricação de Produtos de Panificação","Indústria",3.1449999999999999E-2,5.2416666666666662E-3]
["GOComércio de Artigos do Vestuário","GO","Comércio de Artigos do Vestuário","Comércio",0]
["GOComércio de Autopeças","GO","Comércio de Autopeças","Comércio",3.644766007195839E-2]
["GOComércio de Materiais de Construção","GO","Comércio de Materiais de Construção","Comércio",0]
["GOFarmácias","GO","Farmácias","Comércio",0]
["GOMercearias","GO","Mercearias","Comércio",0]
["GORestaurantes","GO","Restaurantes","Comércio",1.1066746154915975E-2,7.9190677044790603E-3]
["GOConfecção de Peças de Vestuário","GO","Confecção de Peças de Vestuário","Indústria",0]
["GOFabricação de Calçados de Couro","GO","Fabricação de Calçados de Couro","Indústria",0]
["GOFabricação de Laticínios","GO","Fabricação de Laticínios","Indústria",0]
["GOFabricação de Móveis","GO","Fabricação de Móveis","Indústria",0]
["GOFabricação de Produtos Cerâmicos","GO","Fabricação de Produtos Cerâmicos","Indústria",0]
["GOFabricação de Produtos de Panificação","GO","Fabricação de Produtos de Panificação","Indústria",1.4E-2,2.3333333333333335E-3]
["MAComércio de Artigos do Vestuário","MA","Comércio de Artigos do Vestuário","Comércio",0]
["MAComércio de Autopeças","MA","Comércio de Autopeças","Comércio",3.7365180796661401E-2]
["MAComércio de Materiais de Construção","MA","Comércio de Materiais de Construção","Comércio",0]
["MAFarmácias","MA","Farmácias","Comércio",4.2040427894751126E-2]
["MAMercearias","MA","Mercearias","Comércio",1.4843887542912985E-2]
["MARestaurantes","MA","Restaurantes","Comércio",1.1066746154915975E-2,1.7552707064873583E-2]
["MAConfecção de Peças de Vestuário","MA","Confecção de Peças de Vestuário","Indústria",0]
["MAFabricação de Calçados de Couro","MA","Fabricação de Calçados de Couro","Indústria",0]
["MAFabricação de Laticínios","MA","Fabricação de Laticínios","Indústria",0]
["MAFabricação de Móveis","MA","Fabricação de Móveis","Indústria",0]
["MAFabricação de Produtos Cerâmicos","MA","Fabricação de Produtos Cerâmicos","Indústria",0]
["MAFabricação de Produtos de Panificação","MA","Fabricação de Produtos de Panificação","Indústria",2.4202657344628519E-2,4.0337762241047532E-3]
["MGComércio de Artigos do Vestuário","MG","Comércio de Artigos do Vestuário","Comércio",1.1478898806833629E-2]
["MGComércio de Autopeças","MG","Comércio de Autopeças","Comércio",3.7386439098202044E-2]
["MGComércio de Materiais de Construção","MG","Comércio de Materiais de Construção","Comércio",0]
["MGFarmácias","MG","Farmácias","Comércio",3.7337889418535761E-2]
["MGMercearias","MG","Mercearias","Comércio",3.4201048606870288E-2]
["MGRestaurantes","MG","Restaurantes","Comércio",1.1717731222852209E-2,2.2020334525548992E-2]
["MGConfecção de Peças de Vestuário","MG","Confecção de Peças de Vestuário","Indústria",0]
["MGFabricação de Calçados de Couro","MG","Fabricação de Calçados de Couro","Indústria",0]
["MGFabricação de Laticínios","MG","Fabricação de Laticínios","Indústria",2.6216219999999998E-2]
["MGFabricação de Móveis","MG","Fabricação de Móveis","Indústria",0]
["MGFabricação de Produtos Cerâmicos","MG","Fabricação de Produtos Cerâmicos","Indústria",0]
["MGFabricação de Produtos de Panificação","MG","Fabricação de Produtos de Panificação","Indústria",2.9332373161949393E-2,9.2580988603248992E-3]
["MSComércio de Artigos do Vestuário","MS","Comércio de Artigos do Vestuário","Comércio",1.5118231978092707E-2]
["MSComércio de Autopeças","MS","Comércio de Autopeças","Comércio",4.8240365955240658E-2]
["MSComércio de Materiais de Construção","MS","Comércio de Materiais de Construção","Comércio",2.6278743904981819E-2]
["MSFarmácias","MS","Farmácias","Comércio",3.7260306175969822E-2]
["MSMercearias","MS","Mercearias","Comércio",2.1451920223535342E-2]
["MSRestaurantes","MS","Restaurantes","Comércio",2.6988188536737956E-2,2.9222959462426385E-2]
["MSConfecção de Peças de Vestuário","MS","Confecção de Peças de Vestuário","Indústria",0]
["MSFabricação de Calçados de Couro","MS","Fabricação de Calçados de Couro","Indústria",0]
["MSFabricação de Laticínios","MS","Fabricação de Laticínios","Indústria",0]
["MSFabricação de Móveis","MS","Fabricação de Móveis","Indústria",0]
["MSFabricação de Produtos Cerâmicos","MS","Fabricação de Produtos Cerâmicos","Indústria",2.1250000000000002E-2]
["MSFabricação de Produtos de Panificação","MS","Fabricação de Produtos de Panificação","Indústria",3.9000975E-2,1.0041829166666667E-2]
["MTComércio de Artigos do Vestuário","MT","Comércio de Artigos do Vestuário","Comércio",3.9234166033112548E-2]
["MTComércio de Autopeças","MT","Comércio de Autopeças","Comércio",3.9600000078182027E-2]
["MTComércio de Materiais de Construção","MT","Comércio de Materiais de Construção","Comércio",4.8757977283844782E-2]
["MTFarmácias","MT","Farmácias","Comércio",5.5009124170223703E-2]
["MTMercearias","MT","Mercearias","Comércio",6.2629957400027483E-2]
["MTRestaurantes","MT","Restaurantes","Comércio",2.5109424048969022E-2,4.5056774835726593E-2]
["MTConfecção de Peças de Vestuário","MT","Confecção de Peças de Vestuário","Indústria",0.14735982449987187]
["MTFabricação de Calçados de Couro","MT","Fabricação de Calçados de Couro","Indústria",0.1780385895734998]
["MTFabricação de Laticínios","MT","Fabricação de Laticínios","Indústria",9.8559642766186756E-2]
["MTFabricação de Móveis","MT","Fabricação de Móveis","Indústria",0.1549190639317968]
["MTFabricação de Produtos Cerâmicos","MT","Fabricação de Produtos Cerâmicos","Indústria",0.17393943931241679]
["MTFabricação de Produtos de Panificação","MT","Fabricação de Produtos de Panificação","Indústria",0.14910907646800547,0.15032093942529623]
["PAComércio de Artigos do Vestuário","PA","Comércio de Artigos do Vestuário","Comércio",0]
["PAComércio de Autopeças","PA","Comércio de Autopeças","Comércio",3.736566007377079E-2]
["PAComércio de Materiais de Construção","PA","Comércio de Materiais de Construção","Comércio",0]
["PAFarmácias","PA","Farmácias","Comércio",4.2726417056799137E-2]
["PAMercearias","PA","Mercearias","Comércio",0]
["PARestaurantes","PA","Restaurantes","Comércio",1.1066746154915975E-2,1.519313721424765E-2]
["PAConfecção de Peças de Vestuário","PA","Confecção de Peças de Vestuário","Indústria",0]
["PAFabricação de Calçados de Couro","PA","Fabricação de Calçados de Couro","Indústria",0]
["PAFabricação de Laticínios","PA","Fabricação de Laticínios","Indústria",1.7000000000000001E-2]
["PAFabricação de Móveis","PA","Fabricação de Móveis","Indústria",0]
["PAFabricação de Produtos Cerâmicos","PA","Fabricação de Produtos Cerâmicos","Indústria",0]
["PAFabricação de Produtos de Panificação","PA","Fabricação de Produtos de Panificação","Indústria",1.7000000000000001E-2,5.6666666666666671E-3]
["PBComércio de Artigos do Vestuário","PB","Comércio de Artigos do Vestuário","Comércio",0]
["PBComércio de Autopeças","PB","Comércio de Autopeças","Comércio",3.7365180796661408E-2]
["PBComércio de Materiais de Construção","PB","Comércio de Materiais de Construção","Comércio",0]
["PBFarmácias","PB","Farmácias","Comércio",4.6711586549723474E-2]
["PBMercearias","PB","Mercearias","Comércio",2.1031294336799355E-2]
["PBRestaurantes","PB","Restaurantes","Comércio",1.1066746154915975E-2,1.9362467973016703E-2]
["PBConfecção de Peças de Vestuário","PB","Confecção de Peças de Vestuário","Indústria",0]
["PBFabricação de Calçados de Couro","PB","Fabricação de Calçados de Couro","Indústria",0]
["PBFabricação de Laticínios","PB","Fabricação de Laticínios","Indústria",0]
["PBFabricação de Móveis","PB","Fabricação de Móveis","Indústria",0]
["PBFabricação de Produtos Cerâmicos","PB","Fabricação de Produtos Cerâmicos","Indústria",0]
["PBFabricação de Produtos de Panificação","PB","Fabricação de Produtos de Panificação","Indústria",2.8101271829467374E-2,4.683545304911229E-3]
["PEComércio de Artigos do Vestuário","PE","Comércio de Artigos do Vestuário","Comércio",0]
["PEComércio de Autopeças","PE","Comércio de Autopeças","Comércio",3.7365180796661401E-2]
["PEComércio de Materiais de Construção","PE","Comércio de Materiais de Construção","Comércio",3.3485844521042404E-2]
["PEFarmácias","PE","Farmácias","Comércio",4.9733043712680156E-2]
["PEMercearias","PE","Mercearias","Comércio",1.4721906035759551E-2]
["PERestaurantes","PE","Restaurantes","Comércio",1.1066746154915975E-2,2.4395453536843248E-2]
["PEConfecção de Peças de Vestuário","PE","Confecção de Peças de Vestuário","Indústria",0]
["PEFabricação de Calçados de Couro","PE","Fabricação de Calçados de Couro","Indústria",0]
["PEFabricação de Laticínios","PE","Fabricação de Laticínios","Indústria",0]
["PEFabricação de Móveis","PE","Fabricação de Móveis","Indústria",1.0761458083236371E-2]
["PEFabricação de Produtos Cerâmicos","PE","Fabricação de Produtos Cerâmicos","Indústria",1.40012E-2]
["PEFabricação de Produtos de Panificação","PE","Fabricação de Produtos de Panificação","Indústria",2.935171119795563E-2,9.0190615468653326E-3]
["PIComércio de Artigos do Vestuário","PI","Comércio de Artigos do Vestuário","Comércio",0]
["PIComércio de Autopeças","PI","Comércio de Autopeças","Comércio",3.7365180796661408E-2]
["PIComércio de Materiais de Construção","PI","Comércio de Materiais de Construção","Comércio",0]
["PIFarmácias","PI","Farmácias","Comércio",4.2754869795578541E-2]
["PIMercearias","PI","Mercearias","Comércio",3.3650070938878972E-2]
["PIRestaurantes","PI","Restaurantes","Comércio",1.1066746154915975E-2,2.0806144614339151E-2]
["PIConfecção de Peças de Vestuário","PI","Confecção de Peças de Vestuário","Indústria",0]
["PIFabricação de Calçados de Couro","PI","Fabricação de Calçados de Couro","Indústria",0]
["PIFabricação de Laticínios","PI","Fabricação de Laticínios","Indústria",0]
["PIFabricação de Móveis","PI","Fabricação de Móveis","Indústria",0]
["PIFabricação de Produtos Cerâmicos","PI","Fabricação de Produtos Cerâmicos","Indústria",0]
["PIFabricação de Produtos de Panificação","PI","Fabricação de Produtos de Panificação","Indústria",1.3445584607400659E-3,2.2409307679001098E-4]
["PRComércio de Artigos do Vestuário","PR","Comércio de Artigos do Vestuário","Comércio",0]
["PRComércio de Autopeças","PR","Comércio de Autopeças","Comércio",3.73864E-2]
["PRComércio de Materiais de Construção","PR","Comércio de Materiais de Construção","Comércio",0]
["PRFarmácias","PR","Farmácias","Comércio",2.8051199999999998E-2]
["PRMercearias","PR","Mercearias","Comércio",0]
["PRRestaurantes","PR","Restaurantes","Comércio",1.1717699999999999E-2,1.2859216666666666E-2]
["PRConfecção de Peças de Vestuário","PR","Confecção de Peças de Vestuário","Indústria",0]
["PRFabricação de Calçados de Couro","PR","Fabricação de Calçados de Couro","Indústria",0]
["PRFabricação de Laticínios","PR","Fabricação de Laticínios","Indústria",5.1839999999999997E-2]
["PRFabricação de Móveis","PR","Fabricação de Móveis","Indústria",0]
["PRFabricação de Produtos Cerâmicos","PR","Fabricação de Produtos Cerâmicos","Indústria",0]
["PRFabricação de Produtos de Panificação","PR","Fabricação de Produtos de Panificação","Indústria",4.6035E-2,1.6312499999999997E-2]
["RJComércio de Artigos do Vestuário","RJ","Comércio de Artigos do Vestuário","Comércio",0]
["RJComércio de Autopeças","RJ","Comércio de Autopeças","Comércio",3.5909999999999997E-2]
["RJComércio de Materiais de Construção","RJ","Comércio de Materiais de Construção","Comércio",0]
["RJFarmácias","RJ","Farmácias","Comércio",4.4229700000000004E-2]
["RJMercearias","RJ","Mercearias","Comércio",4.967129E-2]
["RJRestaurantes","RJ","Restaurantes","Comércio",1.10667E-2,2.3479615000000006E-2]
["RJConfecção de Peças de Vestuário","RJ","Confecção de Peças de Vestuário","Indústria",0]
["RJFabricação de Calçados de Couro","RJ","Fabricação de Calçados de Couro","Indústria",0]
["RJFabricação de Laticínios","RJ","Fabricação de Laticínios","Indústria",5.4619000000000001E-2]
["RJFabricação de Móveis","RJ","Fabricação de Móveis","Indústria",0]
["RJFabricação de Produtos Cerâmicos","RJ","Fabricação de Produtos Cerâmicos","Indústria",0]
["RJFabricação de Produtos de Panificação","RJ","Fabricação de Produtos de Panificação","Indústria",5.0757499999999997E-2,1.7562749999999999E-2]
["RNComércio de Artigos do Vestuário","RN","Comércio de Artigos do Vestuário","Comércio",0]
["RNComércio de Autopeças","RN","Comércio de Autopeças","Comércio",3.7365180796661408E-2]
["RNComércio de Materiais de Construção","RN","Comércio de Materiais de Construção","Comércio",0]
["RNFarmácias","RN","Farmácias","Comércio",4.2040427894751112E-2]
["RNMercearias","RN","Mercearias","Comércio",1.4721906035759551E-2]
["RNRestaurantes","RN","Restaurantes","Comércio",1.1066746154915975E-2,1.7532376813681343E-2]
["RNConfecção de Peças de Vestuário","RN","Confecção de Peças de Vestuário","Indústria",0]
["RNFabricação de Calçados de Couro","RN","Fabricação de Calçados de Couro","Indústria",0]
["RNFabricação de Laticínios","RN","Fabricação de Laticínios","Indústria",0]
["RNFabricação de Móveis","RN","Fabricação de Móveis","Indústria",0]
["RNFabricação de Produtos Cerâmicos","RN","Fabricação de Produtos Cerâmicos","Indústria",0]
["RNFabricação de Produtos de Panificação","RN","Fabricação de Produtos de Panificação","Indústria",2.9351711197955637E-2,4.8919518663259392E-3]
["ROComércio de Artigos do Vestuário","RO","Comércio de Artigos do Vestuário","Comércio",0]
["ROComércio de Autopeças","RO","Comércio de Autopeças","Comércio",3.7365200000000001E-2]
["ROComércio de Materiais de Construção","RO","Comércio de Materiais de Construção","Comércio",0]
["ROFarmácias","RO","Farmácias","Comércio",4.671184069098016E-2]
["ROMercearias","RO","Mercearias","Comércio",0]
["RORestaurantes","RO","Restaurantes","Comércio",1.1066746666666665E-2,1.5857297892941137E-2]
["ROConfecção de Peças de Vestuário","RO","Confecção de Peças de Vestuário","Indústria",0]
["ROFabricação de Calçados de Couro","RO","Fabricação de Calçados de Couro","Indústria",0]
["ROFabricação de Laticínios","RO","Fabricação de Laticínios","Indústria",0]
["ROFabricação de Móveis","RO","Fabricação de Móveis","Indústria",2.5499999999999998E-2]
["ROFabricação de Produtos Cerâmicos","RO","Fabricação de Produtos Cerâmicos","Indústria",0]
["ROFabricação de Produtos de Panificação","RO","Fabricação de Produtos de Panificação","Indústria",0,4.2499999999999994E-3]
["RRComércio de Artigos do Vestuário","RR","Comércio de Artigos do Vestuário","Comércio",0]
["RRComércio de Autopeças","RR","Comércio de Autopeças","Comércio",3.7365200000000001E-2]
["RRComércio de Materiais de Construção","RR","Comércio de Materiais de Construção","Comércio",0]
["RRFarmácias","RR","Farmácias","Comércio",3.6671439705764121E-2]
["RRMercearias","RR","Mercearias","Comércio",0]
["RRRestaurantes","RR","Restaurantes","Comércio",1.10667E-2,1.4183889950960689E-2]
["RRConfecção de Peças de Vestuário","RR","Confecção de Peças de Vestuário","Indústria",0]
["RRFabricação de Calçados de Couro","RR","Fabricação de Calçados de Couro","Indústria",0]
["RRFabricação de Laticínios","RR","Fabricação de Laticínios","Indústria",0]
["RRFabricação de Móveis","RR","Fabricação de Móveis","Indústria",0]
["RRFabricação de Produtos Cerâmicos","RR","Fabricação de Produtos Cerâmicos","Indústria",0]
["RRFabricação de Produtos de Panificação","RR","Fabricação de Produtos de Panificação","Indústria",1.1428746666666666E-2,1.9047911111111111E-3]
["RSComércio de Artigos do Vestuário","RS","Comércio de Artigos do Vestuário","Comércio",1.071223E-2]
["RSComércio de Autopeças","RS","Comércio de Autopeças","Comércio",3.4746300000000001E-2]
["RSComércio de Materiais de Construção","RS","Comércio de Materiais de Construção","Comércio",2.02255E-2]
["RSFarmácias","RS","Farmácias","Comércio",1.4893950607778204E-2]
["RSMercearias","RS","Mercearias","Comércio",1.1690257328459531E-2]
["RSRestaurantes","RS","Restaurantes","Comércio",1.1717731222852209E-2,1.7330994859848323E-2]
["RSConfecção de Peças de Vestuário","RS","Confecção de Peças de Vestuário","Indústria",0]
["RSFabricação de Calçados de Couro","RS","Fabricação de Calçados de Couro","Indústria",0]
["RSFabricação de Laticínios","RS","Fabricação de Laticínios","Indústria",3.7215999999999999E-2]
["RSFabricação de Móveis","RS","Fabricação de Móveis","Indústria",0]
["RSFabricação de Produtos Cerâmicos","RS","Fabricação de Produtos Cerâmicos","Indústria",4.8000000000000001E-2]
["RSFabricação de Produtos de Panificação","RS","Fabricação de Produtos de Panificação","Indústria",3.1469999999999998E-2,1.9447666666666665E-2]
["SCComércio de Artigos do Vestuário","SC","Comércio de Artigos do Vestuário","Comércio",0]
["SCComércio de Autopeças","SC","Comércio de Autopeças","Comércio",3.7365180796661401E-2]
["SCComércio de Materiais de Construção","SC","Comércio de Materiais de Construção","Comércio",0]
["SCFarmácias","SC","Farmácias","Comércio",3.3672939969662419E-2]
["SCMercearias","SC","Mercearias","Comércio",3.5070771985378597E-3]
["SCRestaurantes","SC","Restaurantes","Comércio",1.1066746154915975E-2,1.4268657353296276E-2]
["SCConfecção de Peças de Vestuário","SC","Confecção de Peças de Vestuário","Indústria",0]
["SCFabricação de Calçados de Couro","SC","Fabricação de Calçados de Couro","Indústria",0]
["SCFabricação de Laticínios","SC","Fabricação de Laticínios","Indústria",1.8700000000000001E-2]
["SCFabricação de Móveis","SC","Fabricação de Móveis","Indústria",0]
["SCFabricação de Produtos Cerâmicos","SC","Fabricação de Produtos Cerâmicos","Indústria",0]
["SC Fabricação de Produtos de Panificação","SC ","Fabricação de Produtos de Panificação","Indústria",8.3995200000000006E-3,4.5165866666666667E-3]
["SEComércio de Artigos do Vestuário","SE","Comércio de Artigos do Vestuário","Comércio",0]
["SEComércio de Autopeças","SE","Comércio de Autopeças","Comércio",3.7365180796661408E-2]
["SEComércio de Materiais de Construção","SE","Comércio de Materiais de Construção","Comércio",0]
["SEFarmácias","SE","Farmácias","Comércio",4.2040427894751112E-2]
["SEMercearias","SE","Mercearias","Comércio",1.4721906035759551E-2]
["SERestaurantes","SE","Restaurantes","Comércio",1.1066746154915975E-2,1.7532376813681343E-2]
["SEConfecção de Peças de Vestuário","SE","Confecção de Peças de Vestuário","Indústria",0]
["SEFabricação de Calçados de Couro","SE","Fabricação de Calçados de Couro","Indústria",0]
["SE Fabricação de Laticínios","SE ","Fabricação de Laticínios","Indústria",0]
["SE Fabricação de Móveis","SE ","Fabricação de Móveis","Indústria",0]
["SEFabricação de Produtos Cerâmicos","SE","Fabricação de Produtos Cerâmicos","Indústria",0]
["SEFabricação de Produtos de Panificação","SE","Fabricação de Produtos de Panificação","Indústria",2.810127182946737E-2,4.6835453049112281E-3]
["SPComércio de Artigos do Vestuário","SP","Comércio de Artigos do Vestuário","Comércio",0]
["SPComércio de Autopeças","SP","Comércio de Autopeças","Comércio",3.7386439098202044E-2]
["SPComércio de Materiais de Construção","SP","Comércio de Materiais de Construção","Comércio",2.0225531317743017E-2]
["SPFarmácias","SP","Farmácias","Comércio",0.1836230490613385]
["SPMercearias","SP","Mercearias","Comércio",0]
["SPRestaurantes","SP","Restaurantes","Comércio",1.1717731222852208E-2,4.2158791783355964E-2]
["SPConfecção de Peças de Vestuário","SP","Confecção de Peças de Vestuário","Indústria",0]
["SPFabricação de Calçados de Couro","SP","Fabricação de Calçados de Couro","Indústria",0]
["SPFabricação de Laticínios","SP","Fabricação de Laticínios","Indústria",2.7774E-2]
["SPFabricação de Móveis","SP","Fabricação de Móveis","Indústria",0]
["SPFabricação de Produtos Cerâmicos","SP","Fabricação de Produtos Cerâmicos","Indústria",2.4E-2]
["SPFabricação de Produtos de Panificação","SP","Fabricação de Produtos de Panificação","Indústria",9.9569309999999987E-3,1.02884885E-2]
["TOComércio de Artigos do Vestuário","TO","Comércio de Artigos do Vestuário","Comércio",0]
["TOComércio de Autopeças","TO","Comércio de Autopeças","Comércio",3.7365180796661401E-2]
["TOComércio de Materiais de Construção","TO","Comércio de Materiais de Construção","Comércio",2.8652836033469277E-2]
["TOFarmácias","TO","Farmácias","Comércio",4.2040427894751126E-2]
["TOMercearias","TO","Mercearias","Comércio",0]
["TORestaurantes","TO","Restaurantes","Comércio",1.1066746154915975E-2,1.9854198479966296E-2]
["TOConfecção de Peças de Vestuário","TO","Confecção de Peças de Vestuário","Indústria",0]
["TOFabricação de Calçados de Couro","TO","Fabricação de Calçados de Couro","Indústria",0]
["TOFabricação de Laticínios","TO","Fabricação de Laticínios","Indústria",0]
["TOFabricação de Móveis","TO","Fabricação de Móveis","Indústria",0]
["TOFabricação de Produtos Cerâmicos","TO","Fabricação de Produtos Cerâmicos","Indústria",3.4000000000000002E-2]
["TOFabricação de Produtos de Panificação","TO","Fabricação de Produtos de Panificação","Indústria",0,5.6666666666666671E-3]
["ACComércio - Outros","AC","Comércio - Outros","Comércio",1.7120254620005045E-2]
["ALComércio - Outros","AL","Comércio - Outros","Comércio",2.4493729584729892E-2]
["AMComércio - Outros","AM","Comércio - Outros","Comércio",2.7562138869354161E-2]
["APComércio - Outros","AP","Comércio - Outros","Comércio",2.4390588813412824E-2]
["BAComércio - Outros","BA","Comércio - Outros","Comércio",4.2353759122735125E-2]
["CEComércio - Outros","CE","Comércio - Outros","Comércio",2.5765998254175113E-2,{"$error":"#DIV/0!"}]
["DFComércio - Outros","DF","Comércio - Outros","Comércio",2.8509679691947246E-2]
["ESComércio - Outros","ES","Comércio - Outros","Comércio",1.4502766666666668E-2]
["GOComércio - Outros","GO","Comércio - Outros","Comércio",7.9190677044790603E-3]
["MAComércio - Outros","MA","Comércio - Outros","Comércio",1.7552707064873583E-2]
["MGComércio - Outros","MG","Comércio - Outros","Comércio",2.2020334525548992E-2]
["MSComércio - Outros","MS","Comércio - Outros","Comércio",2.9222959462426385E-2,{"$error":"#DIV/0!"}]
["MTComércio - Outros","MT","Comércio - Outros","Comércio",4.5056774835726593E-2]
["PAComércio - Outros","PA","Comércio - Outros","Comércio",1.519313721424765E-2]
["PBComércio - Outros","PB","Comércio - Outros","Comércio",1.9362467973016703E-2]
["PEComércio - Outros","PE","Comércio - Outros","Comércio",2.4395453536843248E-2]
["PIComércio - Outros","PI","Comércio - Outros","Comércio",2.0806144614339151E-2]
["PRComércio - Outros","PR","Comércio - Outros","Comércio",1.2859216666666666E-2,{"$error":"#DIV/0!"}]
["RJComércio - Outros","RJ","Comércio - Outros","Comércio",2.3479615000000006E-2]
["RNComércio - Outros","RN","Comércio - Outros","Comércio",1.7532376813681343E-2]
["ROComércio - Outros","RO","Comércio - Outros","Comércio",1.5857297892941137E-2]
["RRComércio - Outros","RR","Comércio - Outros","Comércio",1.4183889950960689E-2]
["RSComércio - Outros","RS","Comércio - Outros","Comércio",1.7330994859848323E-2]
["SCComércio - Outros","SC","Comércio - Outros","Comércio",1.4268657353296276E-2,{"$error":"#DIV/0!"}]
["SEComércio - Outros","SE","Comércio - Outros","Comércio",1.7532376813681343E-2]
["SPComércio - Outros","SP","Comércio - Outros","Comércio",4.2158791783355964E-2]
["TOComércio - Outros","TO","Comércio - Outros","Comércio",1.9854198479966296E-2]
["ACIndústria - Outros","AC","Indústria - Outros","Indústria",2.3333333333333335E-3]
["ALIndústria - Outros","AL","Indústria - Outros","Indústria",1.3876035199659272E-2]
["AMIndústria - Outros","AM","Indústria - Outros","Indústria",2.5358333333333333E-2,{"$error":"#DIV/0!"}]
["APIndústria - Outros","AP","Indústria - Outros","Indústria",1.5515245309688055E-2]
["BAIndústria - Outros","BA","Indústria - Outros","Indústria",1.0350211971577896E-2]
["CEIndústria - Outros","CE","Indústria - Outros","Indústria",1.5609585083948198E-2]
["DFIndústria - Outros","DF","Indústria - Outros","Indústria",2.2422416666666667E-2]
["ESIndústria - Outros","ES","Indústria - Outros","Indústria",5.2416666666666662E-3]
["GOIndústria - Outros","GO","Indústria - Outros","Indústria",2.3333333333333335E-3,{"$error":"#DIV/0!"}]
["MAIndústria - Outros","MA","Indústria - Outros","Indústria",4.0337762241047532E-3]
["MGIndústria - Outros","MG","Indústria - Outros","Indústria",9.2580988603248992E-3]
["MSIndústria - Outros","MS","Indústria - Outros","Indústria",1.0041829166666667E-2]
["MTIndústria - Outros","MT","Indústria - Outros","Indústria",0.15032093942529623]
["PAIndústria - Outros","PA","Indústria - Outros","Indústria",5.6666666666666671E-3]
["PBIndústria - Outros","PB","Indústria - Outros","Indústria",4.683545304911229E-3]
["PEIndústria - Outros","PE","Indústria - Outros","Indústria",9.0190615468653326E-3]
["PIIndústria - Outros","PI","Indústria - Outros","Indústria",2.2409307679001098E-4]
["PRIndústria - Outros","PR","Indústria - Outros","Indústria",1.6312499999999997E-2]
["RJIndústria - Outros","RJ","Indústria - Outros","Indústria",1.7562749999999999E-2]
["RNIndústria - Outros","RN","Indústria - Outros","Indústria",4.8919518663259392E-3]
["ROIndústria - Outros","RO","Indústria - Outros","Indústria",4.2499999999999994E-3]
["RRIndústria - Outros","RR","Indústria - Outros","Indústria",1.9047911111111111E-3]
["RSIndústria - Outros","RS","Indústria - Outros","Indústria",1.9447666666666665E-2]
["SCIndústria - Outros","SC","Indústria - Outros","Indústria",4.5165866666666667E-3]
["SEIndústria - Outros","SE","Indústria - Outros","Indústria",4.6835453049112281E-3]
["SPIndústria - Outros","SP","Indústria - Outros","Indústria",1.02884885E-2]
["TOIndústria - Outros","TO","Indústria - Outros","Indústria",5.6666666666666671E-3]
["ACServiços Simples Nacional - Tabela III","AC","Serviços Simples Nacional - Tabela III","Serviços",0]
["ALServiços Simples Nacional - Tabela III","AL","Serviços Simples Nacional - Tabela III","Serviços",0]
["AMServiços Simples Nacional - Tabela III","AM","Serviços Simples Nacional - Tabela III","Serviços",0]
["APServiços Simples Nacional - Tabela III","AP","Serviços Simples Nacional - Tabela III","Serviços",0]
["BAServiços Simples Nacional - Tabela III","BA","Serviços Simples Nacional - Tabela III","Serviços",0]
["CEServiços Simples Nacional - Tabela III","CE","Serviços Simples Nacional - Tabela III","Serviços",0]
["DFServiços Simples Nacional - Tabela III","DF","Serviços Simples Nacional - Tabela III","Serviços",0]
["ESServiços Simples Nacional - Tabela III","ES","Serviços Simples Nacional - Tabela III","Serviços",0]
["GOServiços Simples Nacional - Tabela III","GO","Serviços Simples Nacional - Tabela III","Serviços",0]
["MAServiços Simples Nacional - Tabela III","MA","Serviços Simples Nacional - Tabela III","Serviços",0]
["MGServiços Simples Nacional - Tabela III","MG","Serviços Simples Nacional - Tabela III","Serviços",0]
["MSServiços Simples Nacional - Tabela III","MS","Serviços Simples Nacional - Tabela III","Serviços",0]
["MTServiços Simples Nacional - Tabela III","MT","Serviços Simples Nacional - Tabela III","Serviços",0]
["PAServiços Simples Nacional - Tabela III","PA","Serviços Simples Nacional - Tabela III","Serviços",0]
["PBServiços Simples Nacional - Tabela III","PB","Serviços Simples Nacional - Tabela III","Serviços",0]
["PEServiços Simples Nacional - Tabela III","PE","Serviços Simples Nacional - Tabela III","Serviços",0]
["PIServiços Simples Nacional - Tabela III","PI","Serviços Simples Nacional - Tabela III","Serviços",0]
["PRServiços Simples Nacional - Tabela III","PR","Serviços Simples Nacional - Tabela III","Serviços",0]
["RJServiços Simples Nacional - Tabela III","RJ","Serviços Simples Nacional - Tabela III","Serviços",0]
["RNServiços Simples Nacional - Tabela III","RN","Serviços Simples Nacional - Tabela III","Serviços",0]
["ROServiços Simples Nacional - Tabela III","RO","Serviços Simples Nacional - Tabela III","Serviços",0]
["RRServiços Simples Nacional - Tabela III","RR","Serviços Simples Nacional - Tabela III","Serviços",0]
["RSServiços Simples Nacional - Tabela III","RS","Serviços Simples Nacional - Tabela III","Serviços",0]
["SCServiços Simples Nacional - Tabela III","SC","Serviços Simples Nacional - Tabela III","Serviços",0]
["SEServiços Simples Nacional - Tabela III","SE","Serviços Simples Nacional - Tabela III","Serviços",0]
["SPServiços Simples Nacional - Tabela III","SP","Serviços Simples Nacional - Tabela III","Serviços",0]
["TOServiços Simples Nacional - Tabela III","TO","Serviços Simples Nacional - Tabela III","Serviços",0]
["ACServiços Simples Nacional - Tabela IV","AC","Serviços Simples Nacional - Tabela IV","Serviços",0]
["ALServiços Simples Nacional - Tabela IV","AL","Serviços Simples Nacional - Tabela IV","Serviços",0]
["AMServiços Simples Nacional - Tabela IV","AM","Serviços Simples Nacional - Tabela IV","Serviços",0]
["APServiços Simples Nacional - Tabela IV","AP","Serviços Simples Nacional - Tabela IV","Serviços",0]
["BAServiços Simples Nacional - Tabela IV","BA","Serviços Simples Nacional - Tabela IV","Serviços",0]
["CEServiços Simples Nacional - Tabela IV","CE","Serviços Simples Nacional - Tabela IV","Serviços",0]
["DFServiços Simples Nacional - Tabela IV","DF","Serviços Simples Nacional - Tabela IV","Serviços",0]
["ESServiços Simples Nacional - Tabela IV","ES","Serviços Simples Nacional - Tabela IV","Serviços",0]
["GOServiços Simples Nacional - Tabela IV","GO","Serviços Simples Nacional - Tabela IV","Serviços",0]
["MAServiços Simples Nacional - Tabela IV","MA","Serviços Simples Nacional - Tabela IV","Serviços",0]
["MGServiços Simples Nacional - Tabela IV","MG","Serviços Simples Nacional - Tabela IV","Serviços",0]
["MSServiços Simples Nacional - Tabela IV","MS","Serviços Simples Nacional - Tabela IV","Serviços",0]
["MTServiços Simples Nacional - Tabela IV","MT","Serviços Simples Nacional - Tabela IV","Serviços",0]
["PAServiços Simples Nacional - Tabela IV","PA","Serviços Simples Nacional - Tabela IV","Serviços",0]
["PBServiços Simples Nacional - Tabela IV","PB","Serviços Simples Nacional - Tabela IV","Serviços",0]
["PEServiços Simples Nacional - Tabela IV","PE","Serviços Simples Nacional - Tabela IV","Serviços",0]
["PIServiços Simples Nacional - Tabela IV","PI","Serviços Simples Nacional - Tabela IV","Serviços",0]
["PRServiços Simples Nacional - Tabela IV","PR","Serviços Simples Nacional - Tabela IV","Serviços",0]
["RJServiços Simples Nacional - Tabela IV","RJ","Serviços Simples Nacional - Tabela IV","Serviços",0]
["RNServiços Simples Nacional - Tabela IV","RN","Serviços Simples Nacional - Tabela IV","Serviços",0]
["ROServiços Simples Nacional - Tabela IV","RO","Serviços Simples Nacional - Tabela IV","Serviços",0]
["RRServiços Simples Nacional - Tabela IV","RR","Serviços Simples Nacional - Tabela IV","Serviços",0]
["RSServiços Simples Nacional - Tabela IV","RS","Serviços Simples Nacional - Tabela IV","Serviços",0]
["SCServiços Simples Nacional - Tabela IV","SC","Serviços Simples Nacional - Tabela IV","Serviços",0]
["SEServiços Simples Nacional - Tabela IV","SE","Serviços Simples Nacional - Tabela IV","Serviços",0]
["SPServiços Simples Nacional - Tabela IV","SP","Serviços Simples Nacional - Tabela IV","Serviços",0]
["TOServiços Simples Nacional - Tabela IV","TO","Serviços Simples Nacional - Tabela IV","Serviços",0]
["ACServiços Simples Nacional - Tabela V","AC","Serviços Simples Nacional - Tabela V","Serviços",0]
["ALServiços Simples Nacional - Tabela V","AL","Serviços Simples Nacional - Tabela V","Serviços",0]
["AMServiços Simples Nacional - Tabela V","AM","Serviços Simples Nacional - Tabela V","Serviços",0]
["APServiços Simples Nacional - Tabela V","AP","Serviços Simples Nacional - Tabela V","Serviços",0]
["BAServiços Simples Nacional - Tabela V","BA","Serviços Simples Nacional - Tabela V","Serviços",0]
["CEServiços Simples Nacional - Tabela V","CE","Serviços Simples Nacional - Tabela V","Serviços",0]
["DFServiços Simples Nacional - Tabela V","DF","Serviços Simples Nacional - Tabela V","Serviços",0]
["ESServiços Simples Nacional - Tabela V","ES","Serviços Simples Nacional - Tabela V","Serviços",0]
["GOServiços Simples Nacional - Tabela V","GO","Serviços Simples Nacional - Tabela V","Serviços",0]
["MAServiços Simples Nacional - Tabela V","MA","Serviços Simples Nacional - Tabela V","Serviços",0]
["MGServiços Simples Nacional - Tabela V","MG","Serviços Simples Nacional - Tabela V","Serviços",0]
["MSServiços Simples Nacional - Tabela V","MS","Serviços Simples Nacional - Tabela V","Serviços",0]
["MTServiços Simples Nacional - Tabela V","MT","Serviços Simples Nacional - Tabela V","Serviços",0]
["PAServiços Simples Nacional - Tabela V","PA","Serviços Simples Nacional - Tabela V","Serviços",0]
["PBServiços Simples Nacional - Tabela V","PB","Serviços Simples Nacional - Tabela V","Serviços",0]
["PEServiços Simples Nacional - Tabela V","PE","Serviços Simples Nacional - Tabela V","Serviços",0]
["PIServiços Simples Nacional - Tabela V","PI","Serviços Simples Nacional - Tabela V","Serviços",0]
["PRServiços Simples Nacional - Tabela V","PR","Serviços Simples Nacional - Tabela V","Serviços",0]
["RJServiços Simples Nacional - Tabela V","RJ","Serviços Simples Nacional - Tabela V","Serviços",0]
["RNServiços Simples Nacional - Tabela V","RN","Serviços Simples Nacional - Tabela V","Serviços",0]
["ROServiços Simples Nacional - Tabela V","RO","Serviços Simples Nacional - Tabela V","Serviços",0]
["RRServiços Simples Nacional - Tabela V","RR","Serviços Simples Nacional - Tabela V","Serviços",0]
["RSServiços Simples Nacional - Tabela V","RS","Serviços Simples Nacional - Tabela V","Serviços",0]
["SCServiços Simples Nacional - Tabela V","SC","Serviços Simples Nacional - Tabela V","Serviços",0]
["SEServiços Simples Nacional - Tabela V","SE","Serviços Simples Nacional - Tabela V","Serviços",0]
["SPServiços Simples Nacional - Tabela V","SP","Serviços Simples Nacional - Tabela V","Serviços",0]
["TOServiços Simples Nacional - Tabela V","TO","Serviços Simples Nacional - Tabela V","Serviços",0]
["ACServiços Simples Nacional - Tabela VI","AC","Serviços Simples Nacional - Tabela VI","Serviços",0]
["ALServiços Simples Nacional - Tabela VI","AL","Serviços Simples Nacional - Tabela VI","Serviços",0]
["AMServiços Simples Nacional - Tabela VI","AM","Serviços Simples Nacional - Tabela VI","Serviços",0]
["APServiços Simples Nacional - Tabela VI","AP","Serviços Simples Nacional - Tabela VI","Serviços",0]
["BAServiços Simples Nacional - Tabela VI","BA","Serviços Simples Nacional - Tabela VI","Serviços",0]
["CEServiços Simples Nacional - Tabela VI","CE","Serviços Simples Nacional - Tabela VI","Serviços",0]
["DFServiços Simples Nacional - Tabela VI","DF","Serviços Simples Nacional - Tabela VI","Serviços",0]
["ESServiços Simples Nacional - Tabela VI","ES","Serviços Simples Nacional - Tabela VI","Serviços",0]
["GOServiços Simples Nacional - Tabela VI","GO","Serviços Simples Nacional - Tabela VI","Serviços",0]
["MAServiços Simples Nacional - Tabela VI","MA","Serviços Simples Nacional - Tabela VI","Serviços",0]
["MGServiços Simples Nacional - Tabela VI","MG","Serviços Simples Nacional - Tabela VI","Serviços",0]
["MSServiços Simples Nacional - Tabela VI","MS","Serviços Simples Nacional - Tabela VI","Serviços",0]
["MTServiços Simples Nacional - Tabela VI","MT","Serviços Simples Nacional - Tabela VI","Serviços",0]
["PAServiços Simples Nacional - Tabela VI","PA","Serviços Simples Nacional - Tabela VI","Serviços",0]
["PBServiços Simples Nacional - Tabela VI","PB","Serviços Simples Nacional - Tabela VI","Serviços",0]
["PEServiços Simples Nacional - Tabela VI","PE","Serviços Simples Nacional - Tabela VI","Serviços",0]
["PIServiços Simples Nacional - Tabela VI","PI","Serviços Simples Nacional - Tabela VI","Serviços",0]
["PRServiços Simples Nacional - Tabela VI","PR","Serviços Simples Nacional - Tabela VI","Serviços",0]
["RJServiços Simples Nacional - Tabela VI","RJ","Serviços Simples Nacional - Tabela VI","Serviços",0]
["RNServiços Simples Nacional - Tabela VI","RN","Serviços Simples Nacional - Tabela VI","Serviços",0]
["ROServiços Simples Nacional - Tabela VI","RO","Serviços Simples Nacional - Tabela VI","Serviços",0]
["RRServiços Simples Nacional - Tabela VI","RR","Serviços Simples Nacional - Tabela VI","Serviços",0]
["RSServiços Simples Nacional - Tabela VI","RS","Serviços Simples Nacional - Tabela VI","Serviços",0]
["SCServiços Simples Nacional - Tabela VI","SC","Serviços Simples Nacional - Tabela VI","Serviços",0]
["SEServiços Simples Nacional - Tabela VI","SE","Serviços Simples Nacional - Tabela VI","Serviços",0]
["SPServiços Simples Nacional - Tabela VI","SP","Serviços Simples Nacional - Tabela VI","Serviços",0]
["TOServiços Simples Nacional - Tabela VI","TO","Serviços Simples Nacional - Tabela VI","Serviços",0]

{"sheet":"Tabelas","index":3,"n_rows":30,"n_cols":7,"rows_kept":30,"cut":false,"hidden":true,"merged":[]}
["UF",null,"Ramo de Atividade",null,"Regime Tributação",null,"Receita Bruta em 12 meses (em R$)"]
["AC",null,"Comércio de Artigos do Vestuário","Comércio","Simples Nacional",null,"Até 180.000,00 "]
["AL",null,"Comércio de Autopeças","Comércio","Lucro Presumido",null,"De 180.000,01 a 360.000,00 "]
["AM",null,"Comércio de Materiais de Construção","Comércio",null,null,"De 360.000,01 a 540.000,00 "]
["AP",null,"Farmácias","Comércio",null,null,"De 540.000,01 a 720.000,00 "]
["BA",null,"Mercearias","Comércio",null,null,"De 720.000,01 a 900.000,00 "]
["CE",null,"Restaurantes","Comércio",null,null,"De 900.000,01 a 1.080.000,00 "]
["DF",null,"Confecção de Peças de Vestuário","Indústria",null,null,"De 1.080.000,01 a 1.260.000,00 "]
["ES",null,"Fabricação de Calçados de Couro","Indústria",null,null,"De 1.260.000,01 a 1.440.000,00 "]
["GO",null,"Fabricação de Laticínios","Indústria",null,null,"De 1.440.000,01 a 1.620.000,00 "]
["MA",null,"Fabricação de Móveis","Indústria",null,null,"De 1.620.000,01 a 1.800.000,00 "]
["MG",null,"Fabricação de Produtos Cerâmicos","Indústria",null,null,"De 1.800.000,01 a 1.980.000,00 "]
["MS",null,"Fabricação de Produtos de Panificação","Indústria",null,null,"De 1.980.000,01 a 2.160.000,00 "]
["MT",null,"Comércio - outros","Comércio",null,null,"De 2.160.000,01 a 2.340.000,00 "]
["PA",null,"Indústria - outros","Indústria",null,null,"De 2.340.000,01 a 2.520.000,00 "]
["PB",null,"Serviços Simples Nacional - Tabela III","Serviços",null,null,"De 2.520.000,01 a 2.700.000,00 "]
["PE",null,"Serviços Simples Nacional - Tabela IV","Serviços",null,null,"De 2.700.000,01 a 2.880.000,00 "]
["PI",null,"Serviços Simples Nacional - Tabela V","Serviços",null,null,"De 2.880.000,01 a 3.060.000,00 "]
["PR",null,"Serviços Simples Nacional - Tabela VI","Serviços",null,null,"De 3.060.000,01 a 3.240.000,00 "]
["RJ",null,null,null,null,null,"De 3.240.000,01 a 3.420.000,00 "]
["RN",null,null,null,null,null,"De 3.420.000,01 a 3.600.000,00 "]
["RO"]
["RR"]
["RS"]
["SC"]
["SE"]
["SP"]
["TO"]
[]
["Total geral"]

{"sheet":"Tabelas_Simples","index":4,"n_rows":335,"n_cols":34,"rows_kept":335,"cut":false,"hidden":true,"merged":[[297,0,299,0],[297,22,299,22],[288,0,290,0],[288,22,290,22],[291,0,293,0],[291,22,293,22],[294,0,296,0],[294,22,296,22],[279,0,281,0],[279,22,281,22],[282,0,284,0],[282,22,284,22],[285,0,287,0],[285,22,287,22],[270,0,272,0],[270,22,272,22],[273,0,275,0],[273,22,275,22],[276,0,278,0],[276,22,278,22],[261,0,263,0],[261,22,263,22],[264,0,266,0],[264,22,266,22],[267,0,269,0],[267,22,269,22],[252,0,254,0],[252,22,254,22],[255,0,257,0],[255,22,257,22],[258,0,260,0],[258,22,260,22],[243,0,245,0],[243,22,245,22],[246,0,248,0],[246,22,248,22],[249,0,251,0],[249,22,251,22],[190,0,192,0],[190,1,192,1],[190,25,192,25],[238,0,239,0],[240,0,242,0],[240,22,242,22]]}
["Tabelas do Simples Nacional"]
[]
["Tabela I - Comércio ",null,null,null,null,null,null,null,null,null,null,null,null,null,null,null,null,null,null,null,"Tabela II - Indústria ",null,null,"Tabela III - Serviços",null,null,"Tabela IV - Serviços",null,null,"TABELA V - Serviços",null,null,"TABELA VI - Serviços"]
["Receita Bruta em 12 meses (em R$) ","Alíquota ","IRPJ ","CSLL ","Cofins ","PIS/Pasep ","CPP ","UNIÃO","ICMS ",null,null,null,null,null,null,null,null,null,null,null,"Receita Bruta em 12 meses (em R$)","ALÍQUOTA",null,"Receita Bruta em 12 meses (em R$)","ALÍQUOTA",null,"Receita Bruta em 12 meses (em R$)","Alíquota",null,"Receita Bruta em 12 meses (em R$)","Alíquota",null,"Receita Bruta em 12 meses (em R$)","Alíquota"]
["Até 180.000,00 ",0.04,0,0,0,0,2.75E-2,2.75E-2,1.2500000000000001E-2,null,null,null,null,null,null,null,null,null,null,null,"Até 180.000,00",4.4999999999999998E-2,null,"Até 180.000,00",0.06,null,"Até 180.000,00",4.4999999999999998E-2,null,"Até 180.000,00",9.8119999999999999E-2,null,"Até 180.000,00",0.16930000000000001]
["De 180.000,01 a 360.000,00 ",5.4699999999999999E-2,0,0,8.6E-3,0,2.75E-2,3.61E-2,1.8599999999999998E-2,null,null,null,null,null,null,null,null,null,null,null,"De 180.000,01 a 360.000,00",5.9700000000000003E-2,null,"De 180.000,01 a 360.000,00",8.2100000000000006E-2,null,"De 180.000,01 a 360.000,00",6.54E-2,null,"De 180.000,01 a 360.000,00",0.10646,null,"De 180.000,01 a 360.000,00",0.1772]
["De 360.000,01 a 540.000,00 ",6.8400000000000002E-2,2.7000000000000001E-3,3.0999999999999999E-3,9.4999999999999998E-3,2.3E-3,2.75E-2,4.5100000000000001E-2,2.3300000000000001E-2,null,null,null,null,null,null,null,null,null,null,null,"De 360.000,01 a 540.000,00",7.3400000000000007E-2,null,"De 360.000,01 a 540.000,00",0.1026,null,"De 360.000,01 a 540.000,00",7.6999999999999999E-2,null,"De 360.000,01 a 540.000,00",0.11052000000000002,null,"De 360.000,01 a 540.000,00",0.18429999999999999]
["De 540.000,01 a 720.000,00 ",7.5399999999999995E-2,3.5000000000000001E-3,3.5000000000000001E-3,1.04E-2,2.5000000000000001E-3,2.9899999999999999E-2,4.9799999999999997E-2,2.5600000000000001E-2,null,null,null,null,null,null,null,null,null,null,null,"De 540.000,01 a 720.000,00",8.0399999999999999E-2,null,"De 540.000,01 a 720.000,00",0.11310000000000001,null,"De 540.000,01 a 720.000,00",8.4900000000000003E-2,null,"De 540.000,01 a 720.000,00",0.11810000000000001,null,"De 540.000,01 a 720.000,00",0.18770000000000001]
["De 720.000,01 a 900.000,00 ",7.5999999999999998E-2,3.5000000000000001E-3,3.5000000000000001E-3,1.0500000000000001E-2,2.5000000000000001E-3,3.0200000000000001E-2,5.0200000000000002E-2,2.58E-2,null,null,null,null,null,null,null,null,null,null,null,"De 720.000,01 a 900.000,00",8.1000000000000003E-2,null,"De 720.000,01 a 900.000,00",0.114,null,"De 720.000,01 a 900.000,00",8.9700000000000002E-2,null,"De 720.000,01 a 900.000,00",0.12212000000000001,null,"De 720.000,01 a 900.000,00",0.19040000000000001]
["De 900.000,01 a 1.080.000,00 ",8.2799999999999999E-2,3.8E-3,3.8E-3,1.15E-2,2.7000000000000001E-3,3.2800000000000003E-2,5.4600000000000003E-2,2.8199999999999999E-2,null,null,null,null,null,null,null,null,null,null,null,"De 900.000,01 a 1.080.000,00",8.7800000000000003E-2,null,"De 900.000,01 a 1.080.000,00",0.1242,null,"De 900.000,01 a 1.080.000,00",9.7799999999999998E-2,null,"De 900.000,01 a 1.080.000,00",0.125,null,"De 900.000,01 a 1.080.000,00",0.19939999999999999]
["De 1.080.000,01 a 1.260.000,00 ",8.3599999999999994E-2,3.8999999999999998E-3,3.8999999999999998E-3,1.1599999999999999E-2,2.8E-3,3.3000000000000002E-2,5.5199999999999999E-2,2.8400000000000002E-2,null,null,null,null,null,null,null,null,null,null,null,"De 1.080.000,01 a 1.260.000,00",8.8599999999999998E-2,null,"De 1.080.000,01 a 1.260.000,00",0.12540000000000001,null,"De 1.080.000,01 a 1.260.000,00",0.1026,null,"De 1.080.000,01 a 1.260.000,00",0.12566000000000002,null,"De 1.080.000,01 a 1.260.000,00",0.2034]
["De 1.260.000,01 a 1.440.000,00 ",8.4500000000000006E-2,3.8999999999999998E-3,3.8999999999999998E-3,1.17E-2,2.8E-3,3.3500000000000002E-2,5.5800000000000002E-2,2.87E-2,null,null,null,null,null,null,null,null,null,null,null,"De 1.260.000,01 a 1.440.000,00",8.9499999999999996E-2,null,"De 1.260.000,01 a 1.440.000,00",0.1268,null,"De 1.260.000,01 a 1.440.000,00",0.1076,null,"De 1.260.000,01 a 1.440.000,00",0.12576000000000001,null,"De 1.260.000,01 a 1.440.000,00",0.20660000000000001]
["De 1.440.000,01 a 1.620.000,00 ",9.0300000000000005E-2,4.1999999999999997E-3,4.1999999999999997E-3,1.2500000000000001E-2,3.0000000000000001E-3,3.5700000000000003E-2,5.96E-2,3.0700000000000002E-2,null,null,null,null,null,null,null,null,null,null,null,"De 1.440.000,01 a 1.620.000,00",9.5299999999999996E-2,null,"De 1.440.000,01 a 1.620.000,00",0.13550000000000001,null,"De 1.440.000,01 a 1.620.000,00",0.11509999999999999,null,"De 1.440.000,01 a 1.620.000,00",0.12890000000000001,null,"De 1.440.000,01 a 1.620.000,00",0.2117]
["De 1.620.000,01 a 1.800.000,00 ",9.1200000000000003E-2,4.3E-3,4.3E-3,1.26E-2,3.0000000000000001E-3,3.5999999999999997E-2,6.0199999999999997E-2,3.1E-2,null,null,null,null,null,null,null,null,null,null,null,"De 1.620.000,01 a 1.800.000,00",9.6199999999999994E-2,null,"De 1.620.000,01 a 1.800.000,00",0.1368,null,"De 1.620.000,01 a 1.800.000,00",0.12,null,"De 1.620.000,01 a 1.800.000,00",0.129,null,"De 1.620.000,01 a 1.800.000,00",0.21379999999999999]
["De 1.800.000,01 a 1.980.000,00 ",9.9500000000000005E-2,4.5999999999999999E-3,4.5999999999999999E-3,1.38E-2,3.3E-3,3.9399999999999998E-2,6.5699999999999995E-2,3.3799999999999997E-2,null,null,null,null,null,null,null,null,null,null,null,"De 1.800.000,01 a 1.980.000,00",0.1045,null,"De 1.800.000,01 a 1.980.000,00",0.14929999999999999,null,"De 1.800.000,01 a 1.980.000,00",0.128,null,"De 1.800.000,01 a 1.980.000,00",0.13440000000000002,null,"De 1.800.000,01 a 1.980.000,00",0.21859999999999999]
["De 1.980.000,01 a 2.160.000,00 ",0.1004,4.5999999999999999E-3,4.5999999999999999E-3,1.3899999999999999E-2,3.3E-3,3.9899999999999998E-2,6.6299999999999998E-2,3.4099999999999998E-2,null,null,null,null,null,null,null,null,null,null,null,"De 1.980.000,01 a 2.160.000,00",0.10539999999999999,null,"De 1.980.000,01 a 2.160.000,00",0.15060000000000001,null,"De 1.980.000,01 a 2.160.000,00",0.13250000000000001,null,"De 1.980.000,01 a 2.160.000,00",0.13726000000000002,null,"De 1.980.000,01 a 2.160.000,00",0.21970000000000001]
["De 2.160.000,01 a 2.340.000,00 ",0.1013,4.7000000000000002E-3,4.7000000000000002E-3,1.4E-2,3.3E-3,4.0099999999999997E-2,6.6799999999999998E-2,3.4500000000000003E-2,null,null,null,null,null,null,null,null,null,null,null,"De 2.160.000,01 a 2.340.000,00",0.10630000000000001,null,"De 2.160.000,01 a 2.340.000,00",0.152,null,"De 2.160.000,01 a 2.340.000,00",0.13700000000000001,null,"De 2.160.000,01 a 2.340.000,00",0.14008000000000001,null,"De 2.160.000,01 a 2.340.000,00",0.22059999999999999]
["De 2.340.000,01 a 2.520.000,00 ",0.1023,4.7000000000000002E-3,4.7000000000000002E-3,1.4200000000000001E-2,3.3999999999999998E-3,4.0500000000000001E-2,6.7500000000000004E-2,3.4799999999999998E-2,null,null,null,null,null,null,null,null,null,null,null,"De 2.340.000,01 a 2.520.000,00",0.10730000000000001,null,"De 2.340.000,01 a 2.520.000,00",0.1535,null,"De 2.340.000,01 a 2.520.000,00",0.14149999999999999,null,"De 2.340.000,01 a 2.520.000,00",0.14510000000000001,null,"De 2.340.000,01 a 2.520.000,00",0.22140000000000001]
["De 2.520.000,01 a 2.700.000,00 ",0.1032,4.7999999999999996E-3,4.7999999999999996E-3,1.43E-2,3.3999999999999998E-3,4.0800000000000003E-2,6.8099999999999994E-2,3.5099999999999999E-2,null,null,null,null,null,null,null,null,null,null,null,"De 2.520.000,01 a 2.700.000,00",0.1082,null,"De 2.520.000,01 a 2.700.000,00",0.15479999999999999,null,"De 2.520.000,01 a 2.700.000,00",0.14599999999999999,null,"De 2.520.000,01 a 2.700.000,00",0.15416000000000002,null,"De 2.520.000,01 a 2.700.000,00",0.22209999999999999]
["De 2.700.000,01 a 2.880.000,00 ",0.1123,5.1999999999999998E-3,5.1999999999999998E-3,1.5599999999999999E-2,3.7000000000000002E-3,4.4400000000000002E-2,7.4099999999999999E-2,3.8199999999999998E-2,null,null,null,null,null,null,null,null,null,null,null,"De 2.700.000,01 a 2.880.000,00",0.1173,null,"De 2.700.000,01 a 2.880.000,00",0.16850000000000001,null,"De 2.700.000,01 a 2.880.000,00",0.15049999999999999,null,"De 2.700.000,01 a 2.880.000,00",0.16222,null,"De 2.700.000,01 a 2.880.000,00",0.22209999999999999]
["De 2.880.000,01 a 3.060.000,00 ",0.1132,5.1999999999999998E-3,5.1999999999999998E-3,1.5699999999999999E-2,3.7000000000000002E-3,4.4900000000000002E-2,7.4700000000000003E-2,3.85E-2,null,null,null,null,null,null,null,null,null,null,null,"De 2.880.000,01 a 3.060.000,00",0.1182,null,"De 2.880.000,01 a 3.060.000,00",0.16980000000000001,null,"De 2.880.000,01 a 3.060.000,00",0.155,null,"De 2.880.000,01 a 3.060.000,00",0.1678,null,"De 2.880.000,01 a 3.060.000,00",0.22320000000000001]
["De 3.060.000,01 a 3.240.000,00 ",0.1142,5.3E-3,5.3E-3,1.5800000000000002E-2,3.8E-3,4.5199999999999997E-2,7.5399999999999995E-2,3.8800000000000001E-2,null,null,null,null,null,null,null,null,null,null,null,"De 3.060.000,01 a 3.240.000,00",0.1192,null,"De 3.060.000,01 a 3.240.000,00",0.17130000000000001,null,"De 3.060.000,01 a 3.240.000,00",0.1595,null,"De 3.060.000,01 a 3.240.000,00",0.17180000000000001,null,"De 3.060.000,01 a 3.240.000,00",0.22370000000000001]
["De 3.240.000,01 a 3.420.000,00 ",0.11509999999999999,5.3E-3,5.3E-3,1.6E-2,3.8E-3,4.5600000000000002E-2,7.5999999999999998E-2,3.9100000000000003E-2,null,null,null,null,null,null,null,null,null,null,null,"De 3.240.000,01 a 3.420.000,00",0.1201,null,"De 3.240.000,01 a 3.420.000,00",0.17269999999999999,null,"De 3.240.000,01 a 3.420.000,00",0.16400000000000001,null,"De 3.240.000,01 a 3.420.000,00",0.17552000000000001,null,"De 3.240.000,01 a 3.420.000,00",0.22409999999999999]
["De 3.420.000,01 a 3.600.000,00 ",0.11609999999999999,5.4000000000000003E-3,5.4000000000000003E-3,1.6E-2,3.8E-3,4.5999999999999999E-2,7.6600000000000001E-2,3.95E-2,null,null,null,null,null,null,null,null,null,null,null,"De 3.420.000,01 a 3.600.000,00",0.1211,null,"De 3.420.000,01 a 3.600.000,00",0.17419999999999999,null,"De 3.420.000,01 a 3.600.000,00",0.16850000000000001,null,"De 3.420.000,01 a 3.600.000,00",0.17925999999999997,null,"De 3.420.000,01 a 3.600.000,00",0.22450000000000001]
[]
[]
["Tabela II - Indústria"]
["Receita Bruta em 12 meses (em R$) ","Alíquota ","IRPJ ","CSLL ","Cofins ","PIS/Pasep ","CPP ","IPI ","UNIÃO","ICMS "]
["Até 180.000,00 ",4.4999999999999998E-2,0,0,0,0,2.75E-2,5.0000000000000001E-3,3.2500000000000001E-2,1.2500000000000001E-2]
["De 180.000,01 a 360.000,00 ",5.9700000000000003E-2,0,0,8.6E-3,0,2.75E-2,5.0000000000000001E-3,4.1099999999999998E-2,1.8599999999999998E-2]
["De 360.000,01 a 540.000,00 ",7.3400000000000007E-2,2.7000000000000001E-3,3.0999999999999999E-3,9.4999999999999998E-3,2.3E-3,2.75E-2,5.0000000000000001E-3,5.0099999999999999E-2,2.3300000000000001E-2]
["De 540.000,01 a 720.000,00 ",8.0399999999999999E-2,3.5000000000000001E-3,3.5000000000000001E-3,1.04E-2,2.5000000000000001E-3,2.9899999999999999E-2,5.0000000000000001E-3,5.4799999999999995E-2,2.5600000000000001E-2]
["De 720.000,01 a 900.000,00 ",8.1000000000000003E-2,3.5000000000000001E-3,3.5000000000000001E-3,1.0500000000000001E-2,2.5000000000000001E-3,3.0200000000000001E-2,5.0000000000000001E-3,5.5199999999999999E-2,2.58E-2]
["De 900.000,01 a 1.080.000,00 ",8.7800000000000003E-2,3.8E-3,3.8E-3,1.15E-2,2.7000000000000001E-3,3.2800000000000003E-2,5.0000000000000001E-3,5.96E-2,2.8199999999999999E-2]
["De 1.080.000,01 a 1.260.000,00 ",8.8599999999999998E-2,3.8999999999999998E-3,3.8999999999999998E-3,1.1599999999999999E-2,2.8E-3,3.3000000000000002E-2,5.0000000000000001E-3,6.0199999999999997E-2,2.8400000000000002E-2]
["De 1.260.000,01 a 1.440.000,00 ",8.9499999999999996E-2,3.8999999999999998E-3,3.8999999999999998E-3,1.17E-2,2.8E-3,3.3500000000000002E-2,5.0000000000000001E-3,6.08E-2,2.87E-2]
["De 1.440.000,01 a 1.620.000,00 ",9.5299999999999996E-2,4.1999999999999997E-3,4.1999999999999997E-3,1.2500000000000001E-2,3.0000000000000001E-3,3.5700000000000003E-2,5.0000000000000001E-3,6.4600000000000005E-2,3.0700000000000002E-2]
["De 1.620.000,01 a 1.800.000,00 ",9.6199999999999994E-2,4.1999999999999997E-3,4.1999999999999997E-3,1.26E-2,3.0000000000000001E-3,3.6200000000000003E-2,5.0000000000000001E-3,6.5200000000000008E-2,3.1E-2]
["De 1.800.000,01 a 1.980.000,00 ",0.1045,4.5999999999999999E-3,4.5999999999999999E-3,1.38E-2,3.3E-3,3.9399999999999998E-2,5.0000000000000001E-3,7.0699999999999999E-2,3.3799999999999997E-2]
["De 1.980.000,01 a 2.160.000,00 ",0.10539999999999999,4.5999999999999999E-3,4.5999999999999999E-3,1.3899999999999999E-2,3.3E-3,3.9899999999999998E-2,5.0000000000000001E-3,7.1300000000000002E-2,3.4099999999999998E-2]
["De 2.160.000,01 a 2.340.000,00 ",0.10630000000000001,4.7000000000000002E-3,4.7000000000000002E-3,1.4E-2,3.3E-3,4.0099999999999997E-2,5.0000000000000001E-3,7.1800000000000003E-2,3.4500000000000003E-2]
["De 2.340.000,01 a 2.520.000,00 ",0.10730000000000001,4.7000000000000002E-3,4.7000000000000002E-3,1.4200000000000001E-2,3.3999999999999998E-3,4.0500000000000001E-2,5.0000000000000001E-3,7.2500000000000009E-2,3.4799999999999998E-2]
["De 2.520.000,01 a 2.700.000,00 ",0.1082,4.7999999999999996E-3,4.7999999999999996E-3,1.43E-2,3.3999999999999998E-3,4.0800000000000003E-2,5.0000000000000001E-3,7.3099999999999998E-2,3.5099999999999999E-2]
["De 2.700.000,01 a 2.880.000,00 ",0.1173,5.1999999999999998E-3,5.1999999999999998E-3,1.5599999999999999E-2,3.7000000000000002E-3,4.4400000000000002E-2,5.0000000000000001E-3,7.9100000000000004E-2,3.8199999999999998E-2]
["De 2.880.000,01 a 3.060.000,00 ",0.1182,5.1999999999999998E-3,5.1999999999999998E-3,1.5699999999999999E-2,3.7000000000000002E-3,4.4900000000000002E-2,5.0000000000000001E-3,7.9700000000000007E-2,3.85E-2]
["De 3.060.000,01 a 3.240.000,00 ",0.1192,5.3E-3,5.3E-3,1.5800000000000002E-2,3.8E-3,4.5199999999999997E-2,5.0000000000000001E-3,8.0399999999999999E-2,3.8800000000000001E-2]
["De 3.240.000,01 a 3.420.000,00 ",0.1201,5.3E-3,5.3E-3,1.6E-2,3.8E-3,4.5600000000000002E-2,5.0000000000000001E-3,8.1000000000000003E-2,3.9100000000000003E-2]
["De 3.420.000,01 a 3.600.000,00 ",0.1211,5.4000000000000003E-3,5.4000000000000003E-3,1.6E-2,3.8E-3,4.5999999999999999E-2,5.0000000000000001E-3,8.1600000000000006E-2,3.95E-2]
[]
[]
["Tabela III - Serviços"]
["Receita Bruta em 12 meses (em R$) ","Alíquota ","IRPJ ","CSLL ","Cofins ","PIS/Pasep ","CPP ","União","ISS "]
["Até 180.000,00 ",0.06,0,0,0,0,0.04,0.04,0.02]
["De 180.000,01 a 360.000,00 ",8.2100000000000006E-2,0,0,1.4200000000000001E-2,0,0.04,5.4199999999999998E-2,2.7900000000000001E-2]
["De 360.000,01 a 540.000,00 ",0.1026,4.7999999999999996E-3,4.3E-3,1.43E-2,3.5000000000000001E-3,4.07E-2,6.7599999999999993E-2,3.5000000000000003E-2]
["De 540.000,01 a 720.000,00 ",0.11310000000000001,5.3E-3,5.3E-3,1.5599999999999999E-2,3.8E-3,4.4699999999999997E-2,7.4700000000000003E-2,3.8399999999999997E-2]
["De 720.000,01 a 900.000,00 ",0.114,5.3E-3,5.1999999999999998E-3,1.5800000000000002E-2,3.8E-3,4.5199999999999997E-2,7.5300000000000006E-2,3.8699999999999998E-2]
["De 900.000,01 a 1.080.000,00 ",0.1242,5.7000000000000002E-3,5.7000000000000002E-3,1.7299999999999999E-2,4.0000000000000001E-3,4.9200000000000001E-2,8.1900000000000001E-2,4.2299999999999997E-2]
["De 1.080.000,01 a 1.260.000,00 ",0.12540000000000001,5.8999999999999999E-3,5.5999999999999999E-3,1.7399999999999999E-2,4.1999999999999997E-3,4.9700000000000001E-2,8.2799999999999999E-2,4.2599999999999999E-2]
["De 1.260.000,01 a 1.440.000,00 ",0.1268,5.8999999999999999E-3,5.7000000000000002E-3,1.7600000000000001E-2,4.1999999999999997E-3,5.0299999999999997E-2,8.3699999999999997E-2,4.3099999999999999E-2]
["De 1.440.000,01 a 1.620.000,00 ",0.13550000000000001,6.3E-3,6.1000000000000004E-3,1.8800000000000001E-2,4.4999999999999997E-3,5.3699999999999998E-2,8.9400000000000007E-2,4.6100000000000002E-2]
["De 1.620.000,01 a 1.800.000,00 ",0.1368,6.3E-3,6.4000000000000003E-3,1.89E-2,4.4999999999999997E-3,5.4199999999999998E-2,9.0299999999999991E-2,4.65E-2]
["De 1.800.000,01 a 1.980.000,00 ",0.14929999999999999,6.8999999999999999E-3,6.8999999999999999E-3,2.07E-2,5.0000000000000001E-3,5.9799999999999999E-2,9.9299999999999999E-2,0.05]
["De 1.980.000,01 a 2.160.000,00 ",0.15060000000000001,6.8999999999999999E-3,6.8999999999999999E-3,2.0899999999999998E-2,5.0000000000000001E-3,6.0900000000000003E-2,0.10059999999999999,0.05]
["De 2.160.000,01 a 2.340.000,00 ",0.152,7.1000000000000004E-3,7.0000000000000001E-3,2.1000000000000001E-2,5.0000000000000001E-3,6.1899999999999997E-2,0.10200000000000001,0.05]
["De 2.340.000,01 a 2.520.000,00 ",0.1535,7.1000000000000004E-3,7.0000000000000001E-3,2.1299999999999999E-2,5.1000000000000004E-3,6.3E-2,0.10350000000000001,0.05]
["De 2.520.000,01 a 2.700.000,00 ",0.15479999999999999,7.1999999999999998E-3,7.0000000000000001E-3,2.1499999999999998E-2,5.1000000000000004E-3,6.4000000000000001E-2,0.1048,0.05]
["De 2.700.000,01 a 2.880.000,00 ",0.16850000000000001,7.7999999999999996E-3,7.6E-3,2.3400000000000001E-2,5.5999999999999999E-3,7.4099999999999999E-2,0.11849999999999999,0.05]
["De 2.880.000,01 a 3.060.000,00 ",0.16980000000000001,7.7999999999999996E-3,7.7999999999999996E-3,2.3599999999999999E-2,5.5999999999999999E-3,7.4999999999999997E-2,0.11979999999999999,0.05]
["De 3.060.000,01 a 3.240.000,00 ",0.17130000000000001,8.0000000000000002E-3,7.9000000000000008E-3,2.3699999999999999E-2,5.7000000000000002E-3,7.5999999999999998E-2,0.12129999999999999,0.05]
["De 3.240.000,01 a 3.420.000,00 ",0.17269999999999999,8.0000000000000002E-3,7.9000000000000008E-3,2.4E-2,5.7000000000000002E-3,7.7100000000000002E-2,0.1227,0.05]
["De 3.420.000,01 a 3.600.000,00 ",0.17419999999999999,8.0999999999999996E-3,7.9000000000000008E-3,2.4199999999999999E-2,5.7000000000000002E-3,7.8299999999999995E-2,0.12419999999999999,0.05]
[]
["Tabela IV - Serviços"]
["Receita Bruta em 12 meses (em R$) ","Alíquota ","IRPJ ","CSLL ","Cofins ","PIS/Pasep ","UNIÃO","ISS "]
["Até 180.000,00 ",4.4999999999999998E-2,0,1.2200000000000001E-2,1.2800000000000001E-2,0,2.5000000000000001E-2,0.02]
["De 180.000,01 a 360.000,00 ",6.54E-2,0,1.84E-2,1.9099999999999999E-2,0,3.7499999999999999E-2,2.7900000000000001E-2]
["De 360.000,01 a 540.000,00 ",7.6999999999999999E-2,1.6000000000000001E-3,1.8499999999999999E-2,1.95E-2,2.3999999999999998E-3,4.1999999999999996E-2,3.5000000000000003E-2]
["De 540.000,01 a 720.000,00 ",8.4900000000000003E-2,5.1999999999999998E-3,1.8700000000000001E-2,1.9900000000000001E-2,2.7000000000000001E-3,4.6500000000000007E-2,3.8399999999999997E-2]
["De 720.000,01 a 900.000,00 ",8.9700000000000002E-2,8.8999999999999999E-3,1.89E-2,2.0299999999999999E-2,2.8999999999999998E-3,5.0999999999999997E-2,3.8699999999999998E-2]
["De 900.000,01 a 1.080.000,00 ",9.7799999999999998E-2,1.2500000000000001E-2,1.9099999999999999E-2,2.07E-2,3.2000000000000002E-3,5.5500000000000001E-2,4.2299999999999997E-2]
["De 1.080.000,01 a 1.260.000,00 ",0.1026,1.6199999999999999E-2,1.9300000000000001E-2,2.1100000000000001E-2,3.3999999999999998E-3,6.0000000000000005E-2,4.2599999999999999E-2]
["De 1.260.000,01 a 1.440.000,00 ",0.1076,0.02,1.95E-2,2.1499999999999998E-2,3.5000000000000001E-3,6.4500000000000002E-2,4.3099999999999999E-2]
["De 1.440.000,01 a 1.620.000,00 ",0.11509999999999999,2.3699999999999999E-2,1.9699999999999999E-2,2.1899999999999999E-2,3.7000000000000002E-3,6.8999999999999992E-2,4.6100000000000002E-2]
["De 1.620.000,01 a 1.800.000,00 ",0.12,2.7400000000000001E-2,0.02,2.23E-2,3.8E-3,7.3499999999999996E-2,4.65E-2]
["De 1.800.000,01 a 1.980.000,00 ",0.128,3.1199999999999999E-2,2.01E-2,2.2700000000000001E-2,4.0000000000000001E-3,7.8E-2,0.05]
["De 1.980.000,01 a 2.160.000,00 ",0.13250000000000001,3.49E-2,2.0299999999999999E-2,2.3099999999999999E-2,4.1999999999999997E-3,8.249999999999999E-2,0.05]
["De 2.160.000,01 a 2.340.000,00 ",0.13700000000000001,3.8600000000000002E-2,2.0500000000000001E-2,2.35E-2,4.4000000000000003E-3,8.7000000000000008E-2,0.05]
["De 2.340.000,01 a 2.520.000,00 ",0.14149999999999999,4.2299999999999997E-2,2.07E-2,2.3900000000000001E-2,4.5999999999999999E-3,9.1499999999999998E-2,0.05]
["De 2.520.000,01 a 2.700.000,00 ",0.14599999999999999,4.5999999999999999E-2,2.1000000000000001E-2,2.4299999999999999E-2,4.7000000000000002E-3,9.6000000000000002E-2,0.05]
["De 2.700.000,01 a 2.880.000,00 ",0.15049999999999999,4.9000000000000002E-2,2.1899999999999999E-2,2.47E-2,4.8999999999999998E-3,0.10050000000000001,0.05]
["De 2.880.000,01 a 3.060.000,00 ",0.155,5.21E-2,2.2700000000000001E-2,2.5100000000000001E-2,5.1000000000000004E-3,0.10500000000000001,0.05]
["De 3.060.000,01 a 3.240.000,00 ",0.1595,5.5100000000000003E-2,2.3599999999999999E-2,2.5499999999999998E-2,5.3E-3,0.1095,0.05]
["De 3.240.000,01 a 3.420.000,00 ",0.16400000000000001,5.8099999999999999E-2,2.4500000000000001E-2,2.5899999999999999E-2,5.4999999999999997E-3,0.11400000000000002,0.05]
["De 3.420.000,01 a 3.600.000,00 ",0.16850000000000001,6.1199999999999997E-2,2.53E-2,2.63E-2,5.7000000000000002E-3,0.11849999999999999,0.05]
[]
["Tabela V - Serviços"]
["Receita Bruta em 12 meses (em R$)","Alíquota","UNIÃO","ISS "]
["Até 180.000,00 ",9.8119999999999999E-2,9.8119999999999999E-2,0.02]
["De 180.000,01 a 360.000,00 ",0.10646,0.10646,2.7900000000000001E-2]
["De 360.000,01 a 540.000,00 ",0.11052000000000002,0.11052000000000002,3.5000000000000003E-2]
["De 540.000,01 a 720.000,00 ",0.11810000000000001,0.11810000000000001,3.8399999999999997E-2]
["De 720.000,01 a 900.000,00 ",0.12212000000000001,0.12212000000000001,3.8699999999999998E-2]
["De 900.000,01 a 1.080.000,00 ",0.125,0.125,4.2299999999999997E-2]
["De 1.080.000,01 a 1.260.000,00 ",0.12566000000000002,0.12566000000000002,4.2599999999999999E-2]
["De 1.260.000,01 a 1.440.000,00 ",0.12576000000000001,0.12576000000000001,4.3099999999999999E-2]
["De 1.440.000,01 a 1.620.000,00 ",0.12890000000000001,0.12890000000000001,4.6100000000000002E-2]
["De 1.620.000,01 a 1.800.000,00 ",0.129,0.129,4.65E-2]
["De 1.800.000,01 a 1.980.000,00 ",0.13440000000000002,0.13440000000000002,0.05]
["De 1.980.000,01 a 2.160.000,00 ",0.13726000000000002,0.13726000000000002,0.05]
["De 2.160.000,01 a 2.340.000,00 ",0.14008000000000001,0.14008000000000001,0.05]
["De 2.340.000,01 a 2.520.000,00 ",0.14510000000000001,0.14510000000000001,0.05]
["De 2.520.000,01 a 2.700.000,00 ",0.15416000000000002,0.15416000000000002,0.05]
["De 2.700.000,01 a 2.880.000,00 ",0.16222,0.16222,0.05]
["De 2.880.000,01 a 3.060.000,00 ",0.1678,0.1678,0.05]
["De 3.060.000,01 a 3.240.000,00 ",0.17180000000000001,0.17180000000000001,0.05]
["De 3.240.000,01 a 3.420.000,00 ",0.17552000000000001,0.17552000000000001,0.05]
["De 3.420.000,01 a 3.600.000,00 ",0.17925999999999997,0.17925999999999997,0.05]
[]
["Tabela VI - Serviços"]
["Receita Bruta em 12 meses (em R$)","Alíquota","União - IRPJ, PIS/Pasep, CSLL, Cofins  e CPP","ISS"]
["Até 180.000,00 ",0.16930000000000001,0.14929999999999999,0.02]
["De 180.000,01 a 360.000,00 ",0.1772,0.14929999999999999,2.7900000000000001E-2]
["De 360.000,01 a 540.000,00 ",0.18429999999999999,0.14929999999999999,3.5000000000000003E-2]
["De 540.000,01 a 720.000,00 ",0.18770000000000001,0.14929999999999999,3.8399999999999997E-2]
["De 720.000,01 a 900.000,00 ",0.19040000000000001,0.1517,3.8699999999999998E-2]
["De 900.000,01 a 1.080.000,00 ",0.19939999999999999,0.15709999999999999,4.2299999999999997E-2]
["De 1.080.000,01 a 1.260.000,00 ",0.2034,0.1608,4.2599999999999999E-2]
["De 1.260.000,01 a 1.440.000,00 ",0.20660000000000001,0.16350000000000001,4.3099999999999999E-2]
["De 1.440.000,01 a 1.620.000,00 ",0.2117,0.1656,4.6100000000000002E-2]
["De 1.620.000,01 a 1.800.000,00 ",0.21379999999999999,0.1673,4.65E-2]
["De 1.800.000,01 a 1.980.000,00 ",0.21859999999999999,0.1686,0.05]
["De 1.980.000,01 a 2.160.000,00 ",0.21970000000000001,0.16969999999999999,0.05]
["De 2.160.000,01 a 2.340.000,00 ",0.22059999999999999,0.1706,0.05]
["De 2.340.000,01 a 2.520.000,00 ",0.22140000000000001,0.1714,0.05]
["De 2.520.000,01 a 2.700.000,00 ",0.22209999999999999,0.1721,0.05]
["De 2.700.000,01 a 2.880.000,00 ",0.22209999999999999,0.1721,0.05]
["De 2.880.000,01 a 3.060.000,00 ",0.22320000000000001,0.17319999999999999,0.05]
["De 3.060.000,01 a 3.240.000,00 ",0.22370000000000001,0.17369999999999999,0.05]
["De 3.240.000,01 a 3.420.000,00 ",0.22409999999999999,0.1741,0.05]
["De 3.420.000,01 a 3.600.000,00 ",0.22450000000000001,0.17449999999999999,0.05]
[]
[]
[]
[]
[]
[]
[]
[]
[]
[]
[]
[]
[]
[]
[]
[]
[]
[]
[]
[]
[]
[]
[]
[]
[]
[]
[]
[]
[]
[]
[]
[]
[]
["ANEXO V DA LEI COMPLEMENTAR No 123, DE 14 DE DEZEMBRO DE 2006."]
[]
["(vigência: 01/01/2012) "]
[]
["Alíquotas e Partilha do Simples Nacional - Receitas decorrentes da prestação de serviços relacionados no § 5º-D do art. 18 desta Lei Complementar. "]
[]
["1) Será apurada a relação (r) conforme abaixo:"]
[]
["(r) = Folha de Salários incluídos encargos (em 12 meses)"]
[]
["Receita Bruta (em 12 meses)"]
[]
["2) Nas hipóteses em que (r) corresponda aos intervalos centesimais da Tabela V-A, onde “<” significa menor que, “>” significa maior que, “≤” significa igual ou menor que e “≥” significa maior ou igual que, as alíquotas do Simples Nacional relativas ao IRPJ, PIS/Pasep, CSLL, Cofins e CPP corresponderão ao seguinte:"]
[null,null,null,null,null,null,null,null,null,null,null,null,null,null,null,null,null,null,null,null,null,null,{"$f":"(40+35)/2","v":37.5},{"$f":"22.5+27.5+32.5+37.5+40","v":160}]
["TABELA V-A",null,null,null,null,null,null,null,null,null,null,null,null,null,null,null,null,null,null,null,null,null,null,{"$f":"X188/5","v":32}]
[]
["Receita Bruta em 12 meses (em R$)","(r)<0,10",null,null,null,null,null,null,null,null,null,null,null,null,null,null,null,null,null,"0,10≤ (r)","0,15≤ (r)","0,20≤ (r)","0,25≤ (r)","0,30≤ (r)","0,35≤ (r)","(r) ≥ 0,40"]
[null,null,null,null,null,null,null,null,null,null,null,null,null,null,null,null,null,null,null,"e","e","e","e","e","e"]
[null,null,null,null,null,null,null,null,null,null,null,null,null,null,null,null,null,null,null,"(r) < 0,15","(r) < 0,20","(r) < 0,25","(r) < 0,30","(r) < 0,35","(r) < 0,40"]
["Até 180.000,00",0.17499999999999999,null,null,null,null,null,null,null,null,null,null,null,null,null,null,null,null,null,0.157,0.13700000000000001,0.1182,0.1047,9.9699999999999997E-2,8.7999999999999995E-2,0.08,{"$f":"AVERAGE(V194:Z194)","v":9.8119999999999999E-2}]
["De 180.000,01 a 360.000,00",0.17519999999999999,null,null,null,null,null,null,null,null,null,null,null,null,null,null,null,null,null,0.1575,0.13900000000000001,0.126,0.12330000000000001,0.1072,9.0999999999999998E-2,8.48E-2,{"$f":"AVERAGE(V195:Z195)","v":0.10646}]
["De 360.000,01 a 540.000,00",0.17549999999999999,null,null,null,null,null,null,null,null,null,null,null,null,null,null,null,null,null,0.1595,0.14199999999999999,0.129,0.12640000000000001,0.1111,9.5799999999999996E-2,9.0300000000000005E-2,0.11052000000000002]
["De 540.000,01 a 720.000,00",0.17949999999999999,null,null,null,null,null,null,null,null,null,null,null,null,null,null,null,null,null,0.16700000000000001,0.15,0.13700000000000001,0.13450000000000001,0.12,0.1056,9.3399999999999997E-2,0.11810000000000001]
["De 720.000,01 a 900.000,00",0.18149999999999999,null,null,null,null,null,null,null,null,null,null,null,null,null,null,null,null,null,0.16950000000000001,0.153,0.14030000000000001,0.1353,0.124,0.1104,0.10059999999999999,0.12212000000000001]
["De 900.000,01 a 1.080.000,00",0.1845,null,null,null,null,null,null,null,null,null,null,null,null,null,null,null,null,null,0.17199999999999999,0.154,0.14099999999999999,0.13600000000000001,0.126,0.11600000000000001,0.106,0.125]
["De 1.080.000,01 a 1.260.000,00",0.1855,null,null,null,null,null,null,null,null,null,null,null,null,null,null,null,null,null,0.17299999999999999,0.155,0.1411,0.1368,0.1268,0.1168,0.10680000000000001,0.12566000000000002]
["De 1.260.000,01 a 1.440.000,00",0.1862,null,null,null,null,null,null,null,null,null,null,null,null,null,null,null,null,null,0.17319999999999999,0.156,0.14119999999999999,0.13689999999999999,0.12690000000000001,0.1169,0.1069,0.12576000000000001]
["De 1.440.000,01 a 1.620.000,00",0.18720000000000001,null,null,null,null,null,null,null,null,null,null,null,null,null,null,null,null,null,0.17419999999999999,0.157,0.14130000000000001,0.14080000000000001,0.1308,0.1208,0.1108,0.12890000000000001]
["De 1.620.000,01 a 1.800.000,00",0.18859999999999999,null,null,null,null,null,null,null,null,null,null,null,null,null,null,null,null,null,0.17560000000000001,0.158,0.1414,0.1409,0.13089999999999999,0.12089999999999999,0.1109,0.129]
["De 1.800.000,01 a 1.980.000,00",0.18959999999999999,null,null,null,null,null,null,null,null,null,null,null,null,null,null,null,null,null,0.17660000000000001,0.159,0.1449,0.14449999999999999,0.1361,0.1278,0.1187,0.13440000000000002]
["De 1.980.000,01 a 2.160.000,00",0.19059999999999999,null,null,null,null,null,null,null,null,null,null,null,null,null,null,null,null,null,0.17760000000000001,0.16,0.1467,0.1464,0.1389,0.13150000000000001,0.12280000000000001,0.13726000000000002]
["De 2.160.000,01 a 2.340.000,00",0.19259999999999999,null,null,null,null,null,null,null,null,null,null,null,null,null,null,null,null,null,0.17960000000000001,0.16200000000000001,0.14860000000000001,0.1482,0.14169999999999999,0.1351,0.1268,0.14008000000000001]
["De 2.340.000,01 a 2.520.000,00",0.1956,null,null,null,null,null,null,null,null,null,null,null,null,null,null,null,null,null,0.183,0.16500000000000001,0.15459999999999999,0.15179999999999999,0.14610000000000001,0.1404,0.1326,0.14510000000000001]
["De 2.520.000,01 a 2.700.000,00",0.20699999999999999,null,null,null,null,null,null,null,null,null,null,null,null,null,null,null,null,null,0.193,0.17449999999999999,0.16239999999999999,0.16,0.1552,0.15029999999999999,0.1429,0.15416000000000002]
["De 2.700.000,01 a 2.880.000,00",0.21199999999999999,null,null,null,null,null,null,null,null,null,null,null,null,null,null,null,null,null,0.2,0.182,0.1691,0.16719999999999999,0.16320000000000001,0.1593,0.15229999999999999,0.16222]
["De 2.880.000,01 a 3.060.000,00",0.217,null,null,null,null,null,null,null,null,null,null,null,null,null,null,null,null,null,0.20499999999999999,0.187,0.17399999999999999,0.17130000000000001,0.16819999999999999,0.1638,0.16170000000000001,0.1678]
["De 3.060.000,01 a 3.240.000,00",0.222,null,null,null,null,null,null,null,null,null,null,null,null,null,null,null,null,null,0.20899999999999999,0.191,0.17799999999999999,0.17549999999999999,0.17219999999999999,0.16819999999999999,0.1651,0.17180000000000001]
["De 3.240.000,01 a 3.420.000,00",0.22500000000000001,null,null,null,null,null,null,null,null,null,null,null,null,null,null,null,null,null,0.21299999999999999,0.19500000000000001,0.182,0.1797,0.1744,0.1721,0.1694,0.17552000000000001]
["De 3.420.000,01 a 3.600.000,00",0.22900000000000001,null,null,null,null,null,null,null,null,null,null,null,null,null,null,null,null,null,0.218,0.2,0.186,0.184,0.17849999999999999,0.17599999999999999,0.17180000000000001,0.17925999999999997]
[]
[]
[]
["3) Somar-se-á a alíquota do Simples Nacional relativa ao IRPJ, PIS/Pasep, CSLL, Cofins e CPP apurada na forma acima a parcela correspondente ao ISS prevista no Anexo IV a esta Lei Complementar."]
[]
["4) A partilha das receitas relativas ao IRPJ, PIS/Pasep, CSLL, Cofins e CPP arrecadadas na forma deste Anexo será realizada com base nos parâmetros definidos na Tabela V-B, onde:"]
[]
["(I) = pontos percentuais da partilha destinada à CPP;"]
[]
["(J) = pontos percentuais da partilha destinada ao IRPJ, calculados após o resultado do fator (I);"]
[]
["(K) = pontos percentuais da partilha destinada à CSLL, calculados após o resultado dos fatores (I) e (J);"]
[]
["(L) = pontos percentuais da partilha destinada à COFINS, calculados após o resultado dos fatores (I), (J) e (K);"]
[]
["(M) = pontos percentuais da partilha destinada à contribuição para o PIS/Pasep, calculados após os resultados dos fatores (I), (J), (K) e (L);"]
[]
["(I) + (J) + (K) + (L) + (M) = 100"]
[]
["N = relação (r) dividida por 0,004, limitando-se o resultado a 100;"]
[]
["P = 0,1 dividido pela relação (r), limitando-se o resultado a 1."]
[]
["TABELA V-B:"]
[]
["Receita Bruta em 12 meses (em R$)","CPP",null,null,null,null,null,null,null,null,null,null,null,null,null,null,null,null,null,"IRPJ","CSLL","COFINS","PIS/PASEP"]
[null,"I",null,null,null,null,null,null,null,null,null,null,null,null,null,null,null,null,null,"J","K","L","M"]
["Até 180.000,00","N x",null,null,null,null,null,null,null,null,null,null,null,null,null,null,null,null,null,"0,75 X","0,25 X","0,75 X","100 - I - J - K - L"]
[null,0.9,null,null,null,null,null,null,null,null,null,null,null,null,null,null,null,null,null,"(100 - I)","(100 - I)","(100 - I - J - K)"]
[null,null,null,null,null,null,null,null,null,null,null,null,null,null,null,null,null,null,null,"X P","X P"]
["De 180.000,01 a 360.000,00","N x",null,null,null,null,null,null,null,null,null,null,null,null,null,null,null,null,null,"0,75 X","0,25 X","0,75 X","100 - I - J - K - L"]
[null,0.875,null,null,null,null,null,null,null,null,null,null,null,null,null,null,null,null,null,"(100 - I)","(100 - I)","(100 - I - J - K)"]
[null,null,null,null,null,null,null,null,null,null,null,null,null,null,null,null,null,null,null,"X P","X P"]
["De 360.000,01 a 540.000,00","N x",null,null,null,null,null,null,null,null,null,null,null,null,null,null,null,null,null,"0,75 X","0,25 X","0,75 X","100 - I - J - K - L"]
[null,0.85,null,null,null,null,null,null,null,null,null,null,null,null,null,null,null,null,null,"(100 - I)","(100 - I)","(100 - I - J - K)"]
[null,null,null,null,null,null,null,null,null,null,null,null,null,null,null,null,null,null,null,"X P","X P"]
["De 540.000,01 a 720.000,00","N x",null,null,null,null,null,null,null,null,null,null,null,null,null,null,null,null,null,"0,75 X","0,25 X","0,75 X","100 - I - J - K - L"]
[null,0.82499999999999996,null,null,null,null,null,null,null,null,null,null,null,null,null,null,null,null,null,"(100 - I)","(100 - I)","(100 - I - J - K)"]
[null,null,null,null,null,null,null,null,null,null,null,null,null,null,null,null,null,null,null,"X P","X P"]
["De 720.000,01 a 900.000,00","N x",null,null,null,null,null,null,null,null,null,null,null,null,null,null,null,null,null,"0,75 X","0,25 X","0,75 X","100 - I - J - K - L"]
[null,0.8,null,null,null,null,null,null,null,null,null,null,null,null,null,null,null,null,null,"(100 - I)","(100 - I)","(100 - I - J - K)"]
[null,null,null,null,null,null,null,null,null,null,null,null,null,null,null,null,null,null,null,"X P","X P"]
["De 900.000,01 a 1.080.000,00","N x",null,null,null,null,null,null,null,null,null,null,null,null,null,null,null,null,null,"0,75 X","0,25 X","0,75 X","100 - I - J - K - L"]
[null,0.77500000000000002,null,null,null,null,null,null,null,null,null,null,null,null,null,null,null,null,null,"(100 - I)","(100 - I)","(100 - I - J - K)"]
[null,null,null,null,null,null,null,null,null,null,null,null,null,null,null,null,null,null,null,"X P","X P"]
["De 1.080.000,01 a 1.260.000,00","N x",null,null,null,null,null,null,null,null,null,null,null,null,null,null,null,null,null,"0,75 X","0,25 X","0,75 X","100 - I - J - K - L"]
[null,0.75,null,null,null,null,null,null,null,null,null,null,null,null,null,null,null,null,null,"(100 - I)","(100 - I)","(100 - I - J - K)"]
[null,null,null,null,null,null,null,null,null,null,null,null,null,null,null,null,null,null,null,"X P","X P"]
["De 1.260.000,01 a 1.440.000,00","N x",null,null,null,null,null,null,null,null,null,null,null,null,null,null,null,null,null,"0,75 X","0,25 X","0,75 X","100 - I - J - K - L"]
[null,0.72499999999999998,null,null,null,null,null,null,null,null,null,null,null,null,null,null,null,null,null,"(100 - I)","(100 - I)","(100 - I - J - K)"]
[null,null,null,null,null,null,null,null,null,null,null,null,null,null,null,null,null,null,null,"X P","X P"]
["De 1.440.000,01 a 1.620.000,00","N x",null,null,null,null,null,null,null,null,null,null,null,null,null,null,null,null,null,"0,75 X","0,25 X","0,75 X","100 - I - J - K - L"]
[null,0.7,null,null,null,null,null,null,null,null,null,null,null,null,null,null,null,null,null,"(100 - I)","(100 - I)","(100 - I - J - K)"]
[null,null,null,null,null,null,null,null,null,null,null,null,null,null,null,null,null,null,null,"X P","X P"]
["De 1.620.000,01 a 1.800.000,00","N x",null,null,null,null,null,null,null,null,null,null,null,null,null,null,null,null,null,"0,75 X","0,25 X","0,75 X","100 - I - J - K - L"]
[null,0.67500000000000004,null,null,null,null,null,null,null,null,null,null,null,null,null,null,null,null,null,"(100 - I)","(100 - I)","(100 - I - J - K)"]
[null,null,null,null,null,null,null,null,null,null,null,null,null,null,null,null,null,null,null,"X P","X P"]
["De 1.800.000,01 a 1.980.000,00","N x",null,null,null,null,null,null,null,null,null,null,null,null,null,null,null,null,null,"0,75 X","0,25 X","0,75 X","100 - I - J - K - L"]
[null,0.65,null,null,null,null,null,null,null,null,null,null,null,null,null,null,null,null,null,"(100 - I)","(100 - I)","(100 - I - J - K)"]
[null,null,null,null,null,null,null,null,null,null,null,null,null,null,null,null,null,null,null,"X P","X P"]
["De 1.980.000,01 a 2.160.000,00","N x",null,null,null,null,null,null,null,null,null,null,null,null,null,null,null,null,null,"0,75 X","0,25 X","0,75 X","100 - I - J - K - L"]
[null,0.625,null,null,null,null,null,null,null,null,null,null,null,null,null,null,null,null,null,"(100 - I)","(100 - I)","(100 - I - J - K)"]
[null,null,null,null,null,null,null,null,null,null,null,null,null,null,null,null,null,null,null,"X P","X P"]
["De 2.160.000,01 a 2.340.000,00","N x",null,null,null,null,null,null,null,null,null,null,null,null,null,null,null,null,null,"0,75 X","0,25 X","0,75 X","100 - I - J - K - L"]
[null,0.6,null,null,null,null,null,null,null,null,null,null,null,null,null,null,null,null,null,"(100 - I)","(100 - I)","(100 - I - J - K)"]
[null,null,null,null,null,null,null,null,null,null,null,null,null,null,null,null,null,null,null,"X P","X P"]
["De 2.340.000,01 a 2.520.000,00","N x",null,null,null,null,null,null,null,null,null,null,null,null,null,null,null,null,null,"0,75 X","0,25 X","0,75 X","100 - I - J - K - L"]
[null,0.57499999999999996,null,null,null,null,null,null,null,null,null,null,null,null,null,null,null,null,null,"(100 - I)","(100 - I)","(100 - I - J - K)"]
[null,null,null,null,null,null,null,null,null,null,null,null,null,null,null,null,null,null,null,"X P","X P"]
["De 2.520.000,01 a 2.700.000,00","N x",null,null,null,null,null,null,null,null,null,null,null,null,null,null,null,null,null,"0,75 X","0,25 X","0,75 X","100 - I - J - K - L"]
[null,0.55000000000000004,null,null,null,null,null,null,null,null,null,null,null,null,null,null,null,null,null,"(100 - I)","(100 - I)","(100 - I - J - K)"]
[null,null,null,null,null,null,null,null,null,null,null,null,null,null,null,null,null,null,null,"X P","X P"]
["De 2.700.000,01 a 2.880.000,00","N x",null,null,null,null,null,null,null,null,null,null,null,null,null,null,null,null,null,"0,75 X","0,25 X","0,75 X","100 - I - J - K - L"]
[null,0.52500000000000002,null,null,null,null,null,null,null,null,null,null,null,null,null,null,null,null,null,"(100 - I)","(100 - I)","(100 - I - J - K)"]
[null,null,null,null,null,null,null,null,null,null,null,null,null,null,null,null,null,null,null,"X P","X P"]
["De 2.880.000,01 a 3.060.000,00","N x",null,null,null,null,null,null,null,null,null,null,null,null,null,null,null,null,null,"0,75 X","0,25 X","0,75 X","100 - I - J - K - L"]
[null,0.5,null,null,null,null,null,null,null,null,null,null,null,null,null,null,null,null,null,"(100 - I)","(100 - I)","(100 - I - J - K)"]
[null,null,null,null,null,null,null,null,null,null,null,null,null,null,null,null,null,null,null,"X P","X P"]
["De 3.060.000,01 a 3.240.000,00","N x",null,null,null,null,null,null,null,null,null,null,null,null,null,null,null,null,null,"0,75 X","0,25 X","0,75 X","100 - I - J - K - L"]
[null,0.47499999999999998,null,null,null,null,null,null,null,null,null,null,null,null,null,null,null,null,null,"(100 - I)","(100 - I)","(100 - I - J - K)"]
[null,null,null,null,null,null,null,null,null,null,null,null,null,null,null,null,null,null,null,"X P","X P"]
["De 3.240.000,01 a 3.420.000,00","N x",null,null,null,null,null,null,null,null,null,null,null,null,null,null,null,null,null,"0,75 X","0,25 X","0,75 X","100 - I - J - K - L"]
[null,0.45,null,null,null,null,null,null,null,null,null,null,null,null,null,null,null,null,null,"(100 - I)","(100 - I)","(100 - I - J - K)"]
[null,null,null,null,null,null,null,null,null,null,null,null,null,null,null,null,null,null,null,"X P","X P"]
["De 3.420.000,01 a 3.600.000,00","N x",null,null,null,null,null,null,null,null,null,null,null,null,null,null,null,null,null,"0,75 X","0,25 X","0,75 X","100 - I - J - K - L"]
[null,0.42499999999999999,null,null,null,null,null,null,null,null,null,null,null,null,null,null,null,null,null,"(100 - I)","(100 - I)","(100 - I - J - K)"]
[null,null,null,null,null,null,null,null,null,null,null,null,null,null,null,null,null,null,null,"X P","X P"]
["ANEXO VI"]
["        (Incluído pela Lei Complementar nº 147, de 2014)    (Produção de efeito)"]
["(Vigência: 1o de janeiro de 2015) "]
[]
["Alíquotas e Partilha do Simples Nacional - Receitas decorrentes da prestação de serviços relacionados no § 5o-I do art. 18 desta Lei Complementar."]
["1) Será apurada a relação (r) conforme abaixo: "]
["(r) = Folha de Salários incluídos encargos (em 12 meses)"]
["Receita Bruta (em 12 meses)"]
["2) A partilha das receitas relativas ao IRPJ, PIS/Pasep, CSLL, Cofins e CPP arrecadadas na forma deste Anexo será realizada com base nos parâmetros definidos na Tabela V-B do Anexo V desta Lei Complementar."]
["3) Independentemente do resultado da relação (r), as alíquotas do Simples Nacional corresponderão ao seguinte:"]
[]
[]
[]
[]
[]
[]
[]
[]
[]
[]
[]
[]
[]
[]
[]
[]
[]
[]
[]
[]
[]
[]
[]
[]
["*"]

{"sheet":"Tabelas_Serviços","index":5,"n_rows":34,"n_cols":1,"rows_kept":34,"cut":false,"hidden":false,"merged":[]}
["Classificação de Serviços Tributados conforme Tabelas III, IV, V e VI do Simples Nacional"]
[]
["Tabela III"]
["I - creche, pré-escola e estabelecimento de ensino fundamental, escolas técnicas, profissionais e de ensino médio, de línguas estrangeiras, de artes, cursos técnicos de pilotagem, preparatórios para concursos, gerenciais e escolas livres, exceto as previstas nos incisos II e III do § 5º-D deste artigo;  "]
["II - agência terceirizada de correios;  "]
["III - agência de viagem e turismo;  "]
["IV - centro de formação de condutores de veículos automotores de transporte terrestre de passageiros e de carga;  "]
["V - agência lotérica;"]
["IX - serviços de instalação, de reparos e de manutenção em geral, bem como de usinagem, solda, tratamento e revestimento em metais;  "]
["XIII - transporte municipal de passageiros; e  "]
["XIV - escritórios de serviços contábeis, observado o disposto nos §§ 22-B e 22-C deste artigo."]
["XV - produções cinematográficas, audiovisuais, artísticas e culturais, sua exibição ou apresentação, inclusive no caso de música, literatura, artes cênicas, artes visuais, cinematográficas e audiovisuais."]
["XVI - fisioterapia;"]
["XVII - corretagem de seguros."]
[]
["Tabela IV"]
["I - construção de imóveis e obras de engenharia em geral, inclusive sob a forma de subempreitada, execução de projetos e serviços de paisagismo, bem como decoração de interiores;"]
["VI - serviço de vigilância, limpeza ou conservação."]
["VII - serviços advocatícios."]
[]
["Tabela V"]
["I - administração e locação de imóveis de terceiros; "]
["II - academias de dança, de capoeira, de ioga e de artes marciais; "]
["III - academias de atividades físicas, desportivas, de natação e escolas de esportes; "]
["IV - elaboração de programas de computadores, inclusive jogos eletrônicos, desde que desenvolvidos em estabelecimento do optante;  "]
["V - licenciamento ou cessão de direito de uso de programas de computação;  "]
["VI - planejamento, confecção, manutenção e atualização de páginas eletrônicas, desde que realizados em estabelecimento do optante;  "]
["IX - empresas montadoras de estandes para feiras;  "]
["XII - laboratórios de análises clínicas ou de patologia clínica;  "]
["XIII - serviços de tomografia, diagnósticos médicos por imagem, registros gráficos e métodos óticos, bem como ressonância magnética; "]
["XIV - serviços de prótese em geral.  "]
[]
["Tabela VI"]
["Demais Serviços"]

{"sheet":"Lucro Presumido","index":6,"n_rows":17,"n_cols":4,"rows_kept":17,"cut":false,"hidden":true,"merged":[]}
["Comércio e Indústria"]
["IRPJ","15% sobre base de cálculo (receita bruta  x 8%)",{"$f":"15%*8%","v":1.2E-2}]
["CSLL","9% sobre base de cálculo (receita bruta X 12%)",{"$f":"9%*12%","v":1.0799999999999999E-2}]
["PIS","0,65% sobre receita bruta mensal",6.4999999999999997E-3]
["COFINS","3% sobre receita bruta",0.03]
["IPI","5% sobre receita bruta",0.05,0.10929999999999999]
["ICMS","Alíquota básica em operações internas",0.09]
[null,null,{"$f":"SUM(C2:C7)","v":0.1993}]
[]
[]
["Serviços"]
["IRPJ","15% sobre base de cálculo (receita bruta  x 8%)",{"$f":"15%*8%","v":1.2E-2}]
["CSLL","9% sobre base de cálculo (receita bruta X 12%)",{"$f":"9%*12%","v":1.0799999999999999E-2}]
["PIS","0,65% sobre receita bruta mensal",6.4999999999999997E-3]
["COFINS","3% sobre receita bruta",0.03,{"$f":"SUM(C12:C15)","v":5.9299999999999999E-2}]
["ISS","Alíquota variável conforme município",0.05]
[null,null,{"$f":"SUM(C12:C16)","v":0.10930000000000001}]

{"sheet":"Critérios","index":7,"n_rows":47,"n_cols":1,"rows_kept":47,"cut":false,"hidden":false,"merged":[]}
["CRITÉRIOS ADOTADOS PARA O CÁLCULO DO IMPOSTO NA NOTA FISCAL"]
[]
["CONSULTE O SEU CONTADOR PARA SABER OS PERCENTUAIS DE TRIBUTAÇÃO COM MAIOR PRECISÃO."]
["1 - Empresas que adotam o Simples Nacional:"]
[]
["1.1 - Os percentuais informados nos campos \"União - IRPJ, CSLL, CPP, PIS, COFINS, IPI\", \"Estado - ICMS\" e \"Município - ISS\" são calculados com base nas tabelas do Simples Nacional."]
[]
["1.2 - Para Serviços enquadrados na Tabela V do Simples Nacional, é informada a alíquota média entre as colunas 5 a 9 no campo \"União - IRPJ, CSLL, CPP, PIS, COFINS, IPI\".  "]
[]
["1.3 - O percentual informado no campo \"Substituição Tributária\" é calculado de acordo com pesquisa tributária realizada pelo SEBRAE."]
[]
["1.4  - Nos segmentos de atividade \"Comércio - Outros\" e \"Indústria - Outros\", é informado o percentual médio de Substituição Tributária dos segmentos Indústria e Comercio incluídos na pesquisa."]
[]
["2 - Empresas que adotam o Lucro Presumido"]
[]
["2.1 - Para as empresas do Setor Comércio:"]
["a) No campo \"União - IRPJ, CSLL, CPP, PIS, COFINS, IPI\"  são incluídos:"]
[". IRPJ (15% sobre base de cálculo - receita bruta  x 8%) = 1,20%"]
[". CSLL (9% sobre base de cálculo - receita bruta x 12%) = 1,08%"]
[". PIS (0,65% sobre receita bruta mensal) = 0,65%"]
[". COFINS (3% sobre receita bruta) = 3%"]
["b) No campo \"Estado - ICMS\" é incluída alíquota média de 9%."]
[]
["2.2 - Para as empresas do Setor Indústria:"]
["a) No campo \"União - IRPJ, CSLL, CPP, PIS, COFINS, IPI\"  são incluídos:"]
[". IRPJ (15% sobre base de cálculo - receita bruta  x 8%) = 1,20%"]
[". CSLL (9% sobre base de cálculo - receita bruta x 12%) = 1,08%"]
[". PIS (0,65% sobre receita bruta mensal) = 0,65%"]
[". COFINS (3% sobre receita bruta) = 3%"]
[". IPI (alíquota variável conforme produto) = 5%"]
["b) No campo \"Estado - ICMS\" é incluída alíquota média de 9%."]
[]
["2.3 - Para as empresas do Setor Serviços:"]
["a) No campo \"União - IRPJ, CSLL, CPP, PIS, COFINS, IPI\"  são incluídos:"]
[". IRPJ (15% sobre base de cálculo - receita bruta  x 8%) = 1,20%"]
[". CSLL (9% sobre base de cálculo - receita bruta x 12%) = 1,08%"]
[". PIS (0,65% sobre receita bruta mensal) = 0,65%"]
[". COFINS (3% sobre receita bruta) = 3%"]
["b) No campo \"Município - ISS\" é incluída alíquota média de 5% (alíquota variável conforme município)."]
[]
["2.4 - Não incluida a Contribuição para Previdência nos três segmentos. "]
[]
["3 - Tributos não incluídos na planilha de cálculo:"]
[". IOF (Imposto sobre Operações Financeiras) incidente sobre produtos financeiros;"]
[". CIDE (Contribuição de Intervenção no Domínio Econômico) incidente sobre a comercialização de petróleo, gás natural, álcool etílico combustível e respectivos derivados;"]
[". Imposto de Impostação incidente sobre produtos oriundos do exterior."]
["Importante: se a empresa for tributada pelos tributos acima, a planilha de cálculo não deve ser utilizada. Consulte o seu contador para saber o percentual dos impostos a ser informado."]